Workbook

Sheet COVER
B2: Statistical Office of the European Union
B10: Directorate E: Sectoral and regional statistics
B11: Unit E-2: Environmental statistics and accounts; sustainable development
B14: 2020-05-20
C16: QUESTIONNAIRE
B17: ANNUAL REPORTING OF PACKAGING AND PACKAGING WASTE 2020 DATA COLLECTION

Sheet Index
B5: ANNUAL REPORTING OF PACKAGING AND PACKAGING WASTE 2020 DATA COLLECTION
B6: STRUCTURE OF THE QUESTIONNAIRE
B7: TITLE | D7: DESCRIPTION | E7: TYPE
B8: I. Yellow tabbed sheets in the questionnaire
B9: Index | D9: Structure of the questionnaire | E9: for information
B10: Basic instructions | D10: Basic instructions | E10: for reading before filling in the questionnaire
B11: Methodology | D11: Explanatory notes and methodology | E11: for reading before filling in the questionnaire
B12: Metadata | D12: Information on the methodology used for gathering the data reported in this questionnaire | E12: for filling in
B13: Footnotes list | D13: List of country-specific explanatory footnotes | E13: for filling in
B14: II. Green tabbed sheets in the questionnaire
B15: Table 1 | D15: Generation and recycling of packaging waste as established by Commission Decision 2005/270/EC as last amended by Commission Implementing Decision 2019/665 | E15: for filling in. This table must be used in all cases
B16: Table 1a | D16: Generation and recycling of packaging waste calculated according Article 3, Article 4 and 5 of Decision 2005/270/EC | E16: for filling in (only if you want to use the old calculation rules for the old targets)
B17: Table 2 | D17: Format to attain an adjusted level of the targets in accordance with Article 5(2) of Directive 94/62/EC | E17: For filling in until 2023. From 2023 onwards, this will be calculated automatically using data from Table 3.
B18: Table 3 | D18: Format for reporting on reusable packaging as established by Commission Decision 2005/270/EC as last amended by Commission Implementing Decision 2019/665 | E18: for filling in
B19: III. Orange tabbed sheets in the questionnaire
B20: Quality report | D20: Quality report (According to Annex IV of Commission Decision 2005/270/EC) | E20: for filling in

Sheet Basic instructions
C3: ANNUAL REPORTING OF PACKAGING AND PACKAGING WASTE 2020 DATA COLLECTION
C4: Basic instructions
C6: Before filling in the questionnaire please read carefully the instructions below. This EXCEL workbook is the questionnaire. Please do not delete or add rows in the questionnaire (except where instructed in the quality report tab).
C7: Please note that this questionnaire only includes tables 1 to 3. Tables 4 to 7 to report on plastic carrier bags according to Commission Implementing Decision 2018/896 are included in a different questionnaire.
C9: 1. Getting started
C10: Enter the data without changing the format of the questionnaire (i.e. do not add/delete rows or columns) since Eurostat uses automated routines for data validation.
C11: Please select your country (click on the white cell): | G11: Luxembourg | J11: =IF(G11="","",VLOOKUP(G11,Lists!A2:B40,2,FALSE)) -> LU
C12: Reference year: | G12: 2018
C13: The due date for reporting is 30 June 2020
C14: Who is the primary contact point for annual reporting of packaging and packaging waste in your country?
C16: Name: | D16: Tim Mirgain
C18: Institution: | D18: Administration de l'environnement
C20: Unit: | D20: Unité statistiques et évaluation de l'environnement
C22: Telephone: | D22: +352 40 56 56 322
C24: Email adress: | D24: tim.mirgain@aev.etat.lu
C25: Eurostat would be grateful if you could send us the completed questionnaire ahead of the deadline.
C27: 2. Data transmission:
C28: The standard tool for the transmission of statistical data is the eDAMIS system. The system creates a secure environment for the transmission of data, it records all data submissions and acknowledges the data delivery. The eDAMIS system has been installed in the National Statistical Institutes.
C29: Please submit this questionnaire to Eurostat using the eDAMIS reporting system. Use the following details: Domain name: WASTE Data set name: WASTE_PACKDAT_A
C30: Should you have any questions regarding data transmission do not hesitate to contact your local eDAMIS coordinator or the Eurostat eDAMIS helpdesk at:
D31: web page | F31: https://webgate.ec.europa.eu/edamis/helpcenter/website/index.htm
D32: this e-mail address: | F32: estat-support-edamis@ec.europa.eu
D33: or call: | F33: (+352) 4301 33213
C34: For methodological questions please contact: | F34: ESTAT-WASTE-STATISTICS@EC.EUROPA.EU
C36: 3. Reporting conventions
C37: Description | E37: Symbol
C38: Real zero | E38: 0
C39: Not available | F39: (empty cell)
C41: 1. White shaded (uncoloured) boxes: Provision of data is mandatory
C42: 2. Light blue shaded boxes: Provision of data is voluntary
C43: 3. Light purple shaded boxes: Reporting is mandatory only to Member States that include those amounts in the recycling rates (see detailed instructions in Table 1)
C44: 4. Black shaded boxes: reporting is not applicable
C45: 5. Grey shaded boxes: calculation is automatic; do not input any data into these cells
C47: 4. Metadata: In the yellow sheet named 'Metadata', please provide information on the sources available and methodology used to produce the statistics on packaging and packaging waste. Please also declare which recycling target the Member State is reporting against. The metadata consists of background information to provide a national context for understanding the data reported in tables 1-3, whereas the quality report consists of technical information about how the data was collected and calculated.
C49: 5. Footnotes: You are asked to report data that follow as closely as possible packaging waste definitions and reporting rules (see paragraphs below). Please report problems with the coverage or data quality in 'Metadata' worksheet.
C50: Flags (footnote symbols) should be entered in the reporting tables in the footnote columns, next to the value cell. There are two types of footnotes: - Letters for standard footnotes (as defined by Eurostat) and - Numbers for country-specific footnotes (to be defined by the data compilers).
C51: Standard footnotes
C52: The following footnotes will be used for the automatic data processing and data dissemination. Hence, they cannot be changed:
C53: B) break in series. Please use this flag when the reported figure cannot be compared to the data reported for the previous year, e.g. because of new methods or sources being used or when you move from the old calculation rules to the new calculation rules. Please use this flag only when the change in methods, sources or calculation rules has a substantial impact.
C54: E) estimated data
C55: P) provisional
C56: To include standard footnotes use the drop-down menu.
C58: Country-specific explanatory footnotes
C59: The country-specific footnotes can be used for any meaning beyond the pre-defined footnotes. To include a country-specific footnote, please first insert the text in the “Footnote list” sheet starting from number 1. Then in the data table please select the corresponding footnote reference number from the drop-down menu in the footnote column next to the value cell. The text you entered in the “Footnote list” sheet will then appear automatically next to the footnote reference number. The same explanatory footnote can be chosen for all the values for which the same explanation applies. If by mistake a number is chosen from the drop-down menu, it is sufficient to press the key delete to clean the cell. Please do not report footnotes that elaborate on e.g. source data and compilation methods; these are to be described in the quality report and the metadata sheets.
C61: 6. Methodology and questions: The guidelines to report on packaging and packaging waste are available on Eurostat website:
C62: https://ec.europa.eu/eurostat/web/waste/methodology
C63: The guidelines contain definitions, examples and recommendations to ensure that data are compiled and maintained on a consistent basis. They explain the scope and the reasoning behind the terms of the tables, and provide extra information necessary to allow a consistent collection and interpretation of the data to be reported by countries. A great deal of effort has been put into increasing coherence and providing users of the guidelines with practical recommendations. Full implementation of these recommendations should help to ensure that the data are compiled and maintained on a consistent basis.
C64: A summary methodology is presented in this questionnaire, in the sheet named 'Methodology'. It is essential to read this sheet before filling in the questionnaire as it contains, beside the summary methodology, important information on priorities for filling in the tables, data sources and hints for establishing a methodology at national level.
C65: Packaging and packaging waste may be reported against either the new targets in the amending Directive (EU) 2018/852, or against the old targets in Article 6 of Directive 94/62/EC.
C66: If you have questions, please send them to the following email addresses:
C67: ESTAT-WASTE-STATISTICS@EC.EUROPA.EU
B68: Annex: How to fill in the data sheets of the questionnaire
C69: You are kindly requested to:
C70: a) Explain the methodology and targets you have selected for reporting (yellow sheet named "Metadata").
C71: b) Fill in Table 1. Table 1 is the new format for reporting on packaging and packaging waste. Therefore, Table 1 must be used in all cases. Table 1a is only to be used if Table 1 contains data according to the new rules but a Member State wants to prove compliance with the old targets until 2025 (and beyond in case of a derogation) using the old rules. Member States are encouraged to use the methodology to report according the new rules for reference years 2018 and 2019. However, if this is not possible and only data according to the old rules can be provided for these two years, Table 1 must still be used (not Table 1a). In this case, provision of separate data for aluminium and steel packaging would be voluntary (in line with the old rules). Also, for reference years 2018 and 2019, the three different recycling columns should be filled in as best possible, but it might not be possible to fill all in as the split was not required under the old rules. Finally, when reporting in line with the old rules, the ‘Energy Recovery (R1)’ column shall include the R 1 recovery operations as mentioned in Annex II of the Waste Framework Directive 2008/98/EC as last amended.
C72: c) Table 1a. If you are reporting against the old and new recycling targets according to the new calculation rules, you do not need to complete this table. If you have already used Table 1 to report data according to the old calculations rules, there is no need to complete Table 1a either. Table 1a is only to be completed if Table 1 contains data according to the new rules but you want to prove compliance with the old targets until 2025 (and beyond in case of a derogation) using the old rules.
C73: d) Table 2 needs to be completed if a Member State wants to make use – in accordance with Article 5(2) of Directive 94/62 - of the adjusted level for the recycling targets in Article 6(1)(f) to (i) of Directive 94/62. These targets apply from reference years 2025 respectively 2030. In principle, Table 3 contains the necessary information for completing Table 2. Then, from reference year 2023 onwards, the necessary information to complete Table 2 for three previous years can be derived from Table 3 as reported for the previous reference years. If a Member State wishes to see their distance to target for the 2025 targets already before, it is possible that the Member States complete the data for Table 2 for the three previous reference years (2017, 2016, 2015) if such data are available. Filling in these earlier years is voluntary.
C74: e) Filling in Table 3 is obligatory for the reference year 2020 onwards, and the first report is due by 30 June 2022.
C75: Tables 1 to 3
C76: 1) All the cells that include mandatory data should be filled in with a value. In the questionnaire all these cells are uncoloured. For light purple cells see Table 1.
C77: 2) All the cells that include voluntary data can be filled in with a value, a real zero or remain empty if data are not available. In the questionnaire all these cells are coloured in light blue.
C78: 3) Flags (footnote symbols) can be entered in the reporting tables in the footnote columns.
C79: 4) To include standard footnotes use the drop-down menu.
C80: 5) The text of specific footnotes can be entered in the worksheet 'Footnotes list'.
C81: 6) Complete the quality report, providing as much information as possible.

Sheet Methodology
B2: EXPLANATORY NOTES AND METHODOLOGY
B5: Table of contents
B6: 1. Background
B7: 2. Legal acts
B8: 3. Data reporting - questionnaire
B10: 1. Background
B11: The European Parliament and the Council adopted Directive 94/62/EC to prevent or reduce the impact of packaging and packaging waste on the environment. This reporting template allows Member States to report packaging waste pursuant to the requirements in the implementing Decision (EU) 2019/665 of 17 April 2019, amending Decision 2005/270/EC establishing formats relating to the database system pursuant to European Parliament and Council Directive 94/62/EC on packaging and packaging waste The guidelines are available here:
B12: https://ec.europa.eu/eurostat/web/waste/methodology
B14: 2. Legal acts
B15: European Parliament and Council Directive 94/62/EC of 20 December 1994 on packaging and packaging waste as last amended. Commission Decision 2005/270/EC of 22 March 2005 establishing the formats relating to the database system pursuant to Directive 94/62/EC of the European Parliament and of the Council on packaging and packaging waste as last amended. Directive (EU) 2018/852 of the European Parliament and of the Council of 30 May 2018 amending Directive 94/62/EC on packaging and packaging waste. Commission Implementing Decision (EU) 2019/665 of 17 April 2019 amending Decision 2005/270/EC establishing the formats relating to the database system pursuant to European Parliament and Council Directive 94/62/EC on packaging and packaging waste (notified under document C(2019) 2805. The legislation is available here:
B16: https://ec.europa.eu/eurostat/web/waste/legislation
B18: 3. Data reporting - questionnaire
B19: This document assists Member States to report high quality, harmonised and efficient statistics on packaging and packaging waste in accordance to the Commission Decision 2005/270/EC. Detailed instructions can be found in the guidance document referred to above. The reporting shall cover a full calendar year. The basic instructions sheet consists of some information necessary for filling in this questionnaire correctly, like country codes, reference years, unit of measure, allowed symbols, metadata, footnotes, and transmission to Eurostat. The metadata sheet asks some questions on methodology and coverage that should be answered and returned to Eurostat. The Commission Decision, Article 9.4, establishes a quality report and sets out the format in its Annex IV, that needs to be completed, see sheet 'Quality report'. These questions are necessary to understand the data collection methodology used by the country and the coverage of the data transmitted which in turn will allow for better comparison of data across countries.

Sheet Metadata
B2: ANNUAL REPORTING OF PACKAGING AND PACKAGING WASTE QUESTIONS ON METHODOLOGY
B3: 1. Please enter the name and email address of the person that filled in this questionnaire
C4: Name: | D4: Tim Mirgain
C6: E-mail: | D6: tim.mirgain@aev.etat.lu
B7: 2. Please describe your data source(s)
C8: The analysis is based on the annual data submission of waste handlers in Luxembourg.
B9: 3. Please indicate if you are reporting in accordance with the new calculation rules (as set out in Articles 6a to 6d of Commission Decision 2005/270 as last amended) in Table 1. Please also indicate if you intend to report compliance with the old recycling targets according to the old calculation rules (as set out in Articles 3 to 5 of Commission Decision 2005/270 as last amended).
C10: LU is reporting according to the old calculation rules in Table 1 and also whishes to report compliance with the old recycling targets.
B11: 4. Please indicate if you wish to take into account the amount of wooden packaging that is repaired for reuse in the calculation of the targets laid down in point (f), point (g) (ii), point (h) and point (i) (ii) of Article 6(1) of Directive 94/62/EC. If yes, please indicate the adjusted recycling rates in the box below and fill in the purple shaded cells in Table 1 for the column "Repair". Please do not add the amount of repaired wooden packaging to the amount recycled and to the amount of waste generated in Table 1!
C12: No
B13: 5. Please indicate if you wish to take into account the amount of metals in incineration bottom ash (IBA) for the calculation of the targets.
C14: Yes
B15: 6. Please indicate whether the derogation to make use of the delegated act on average loss rates has been applied.
C16: Not applicable for 2020 data collection as legal act not yet in force
B17: 7. Please provide details on the types of reuse system in place for each main material type.
C18: The Hospitality and food sector uses a considerable part of reusable glass beverage bottles. Plastic reusable bags > 50 microns are used by 74% of the consumers when they shop; half of these bags are the “Ecosac”, a national bag (EU best practice) which is implemented by a major part of the supermarkets and distributors and sold to consumers. Also, for vegetables, a national meshbag, the “Superbag” has been developed and is proposed to consumers in the same selling places. There are currently no other major mainstreams of reusable packaging known by our administration.
B19: 8. Regarding the revision of data series when changing sources and methods. Did you correct backwards data series when you changed sources and methods? Could you send the revised data for previous years?
C20: Yes. Revised data for previous years will be send via e-mail
B21: 9. Any other comments?

Sheet Footnotes list
B2: ANNUAL REPORTING OF PACKAGING AND PACKAGING WASTE FOOTNOTES LIST
B3: Country: | C3: =IF('Basic instructions'!G11="","",'Basic instructions'!G11) -> Luxembourg
B4: Number | C4: Country-specific footnotes
B5: 1 | C5: The main sorting facility for municipal plastic packaging waste was upgraded in 2018. This has led to reduced amount of plastic packaging being recycled, compared to 2017, as packaging waste was not recycled or carried over into 2019.
B6: 2 | C6: Data on aluminium packaging is used from the EPR scheme. Currently the EPR scheme does only cover residential packaging. For aluminium packaging it can however be assumed that there is no commercial packaging.
B7: 3 | C7: In previous submission the category "other packaging" was used for composite materials. As this is not in line with the calculation method LU has taken the assumption that 50% of composite packaging is cardboard and 50% is plastic. LU will carry out more analysis in order to fully comply with the calculation method in futur reports.
B8: 4 | C8: In 2018 a major wood panel producer started using wood waste in its panel production. This has lead to a higher demand for high quality wood (like pallets) which in turn led to a better sorting. The improved sorting process led to a better identification of wood packaging.
B9: 5 | C9: Luxembourg does not export waste directly outside the EU. For all packaging waste collected via the official household packaging scheme (valorlux) LU knows that the end user of those waste streams are all located in the EU. LU can however not exclude that some of the packaging waste collected by other waste handlers does not transit via neighbouring countries outside the EU.
B10: 6
B11: 7
B12: 8
B13: 9
B14: 10
B15: 11
B16: 12
B17: 13
B18: 14
B19: 15
B20: 16
B21: 17
B22: 18
B23: 19
B24: 20
B25: 21
B26: 22
B27: 23
B28: 24
B29: 25
B30: 26
B31: 27
B32: 28
B33: 29
B34: 30
B35: 31
B36: 32
B37: 33
B38: 34
B39: 35
B40: 36
B41: 37
B42: 38
B43: 39
B44: 40
B45: 41
B46: 42
B47: 43
B48: 44
B49: 45
B50: 46
B51: 47
B52: 48
B53: 49
B54: 50

Sheet Table_1
F2: TABLE 1. Generation and recycling of packaging waste as established by Commission Decision 2005/270/EC as last amended by Commission Implementing Decision 2019/665(1) ( in tonnes)
F3: Country: | G3: ='Basic instructions'!J11 -> LU | H3: =IF('Basic instructions'!G11="","",'Basic instructions'!G11) -> Luxembourg
F4: Reference year: | G4: =IF('Basic instructions'!G12="","",'Basic instructions'!G12) -> 2018
F5: Packaging waste material | G5: Generation | K5: Recycling (The total weight of waste of each material type, at the relevant calculation points) | AA5: Repair | AE5: Recovery
G6: Waste generation (a) | H6: Standard footnotes | I6: Explanatory footnote | K6: Recycling in the Member State | L6: Standard footnotes | M6: Explanatory footnote | O6: Recycling in other Member States | P6: Standard footnotes | Q6: Explanatory footnote | S6: Recycling outside the EU | T6: Standard footnotes | U6: Explanatory footnote | W6: Recycling (Total ) | X6: Standard footnotes | Y6: Explanatory footnote | AA6: Repair of wooden packaging | AB6: Standard footnotes | AC6: Explanatory footnote | AE6: Energy recovery(2) (R1) | AF6: Standard footnotes | AG6: Explanatory footnote | AI6: Other recovery (3) | AJ6: Standard footnotes | AK6: Explanatory footnote
C7: unit | D7: waste | F7: wst_oper ==> | G7: GEN | K7: RCY_NAT | O7: RCY_EU_FOR | S7: RCY_NEU | W7: RCY | AA7: RPR | AE7: RCV_E | AI7: RCV_OTH
C8: T | D8: W150102 | F8: Plastic | G8: 25902 | J8: =IF(TRIM(I8)="", "", IF(VLOOKUP(I8,'Footnotes list'!$B$5:$C$103,2,FALSE)=0,"",VLOOKUP(I8,'Footnotes list'!$B$5:$C$103,2,FALSE) ) ) ->  | K8: 0 | N8: =IF(TRIM(M8)="", "", IF(VLOOKUP(M8,'Footnotes list'!$B$5:$C$103,2,FALSE)=0,"",VLOOKUP(M8,'Footnotes list'!$B$5:$C$103,2,FALSE) ) ) ->  | O8: 8379 | Q8: 1 | R8: =IF(TRIM(Q8)="", "", IF(VLOOKUP(Q8,'Footnotes list'!$B$5:$C$103,2,FALSE)=0,"",VLOOKUP(Q8,'Footnotes list'!$B$5:$C$103,2,FALSE) ) ) -> The main sorting facility for municipal plastic packaging waste was upgraded in 2018. This has led to reduced amount of plastic packaging being recycled, compared to 2017, as packaging waste was not recycled or carried over into 2019. | S8: 0 | T8: E | U8: 5 | V8: =IF(TRIM(U8)="", "", IF(VLOOKUP(U8,'Footnotes list'!$B$5:$C$103,2,FALSE)=0,"",VLOOKUP(U8,'Footnotes list'!$B$5:$C$103,2,FALSE) ) ) -> Luxembourg does not export waste directly outside the EU. For all packaging waste collected via the official household packaging scheme (valorlux) LU knows that the end user of those waste streams are all located in the EU. LU can however not exclude that some of the packaging waste collected by other waste handlers does not transit via neighbouring countries outside the EU. | W8: =O8+S8 -> 8379 | Z8: =IF(TRIM(Y8)="", "", IF(VLOOKUP(Y8,'Footnotes list'!$B$5:$C$103,2,FALSE)=0,"",VLOOKUP(Y8,'Footnotes list'!$B$5:$C$103,2,FALSE) ) ) ->  | AE8: 13653 | AH8: =IF(TRIM(AG8)="", "", IF(VLOOKUP(AG8,'Footnotes list'!$B$5:$C$103,2,FALSE)=0,"",VLOOKUP(AG8,'Footnotes list'!$B$5:$C$103,2,FALSE) ) ) ->  | AI8: 0 | AL8: =IF(TRIM(AK8)="", "", IF(VLOOKUP(AK8,'Footnotes list'!$B$5:$C$103,2,FALSE)=0,"",VLOOKUP(AK8,'Footnotes list'!$B$5:$C$103,2,FALSE) ) ) -> 
C9: T | D9: W150103 | F9: Wood | G9: 14623 | I9: 4 | J9: =IF(TRIM(I9)="", "", IF(VLOOKUP(I9,'Footnotes list'!$B$5:$C$103,2,FALSE)=0,"",VLOOKUP(I9,'Footnotes list'!$B$5:$C$103,2,FALSE) ) ) -> In 2018 a major wood panel producer started using wood waste in its panel production. This has lead to a higher demand for high quality wood (like pallets) which in turn led to a better sorting. The improved sorting process led to a better identification of wood packaging. | K9: 0 | N9: =IF(TRIM(M9)="", "", IF(VLOOKUP(M9,'Footnotes list'!$B$5:$C$103,2,FALSE)=0,"",VLOOKUP(M9,'Footnotes list'!$B$5:$C$103,2,FALSE) ) ) ->  | O9: 4622 | Q9: 4 | R9: =IF(TRIM(Q9)="", "", IF(VLOOKUP(Q9,'Footnotes list'!$B$5:$C$103,2,FALSE)=0,"",VLOOKUP(Q9,'Footnotes list'!$B$5:$C$103,2,FALSE) ) ) -> In 2018 a major wood panel producer started using wood waste in its panel production. This has lead to a higher demand for high quality wood (like pallets) which in turn led to a better sorting. The improved sorting process led to a better identification of wood packaging. | S9: 0 | T9: E | U9: 5 | V9: =IF(TRIM(U9)="", "", IF(VLOOKUP(U9,'Footnotes list'!$B$5:$C$103,2,FALSE)=0,"",VLOOKUP(U9,'Footnotes list'!$B$5:$C$103,2,FALSE) ) ) -> Luxembourg does not export waste directly outside the EU. For all packaging waste collected via the official household packaging scheme (valorlux) LU knows that the end user of those waste streams are all located in the EU. LU can however not exclude that some of the packaging waste collected by other waste handlers does not transit via neighbouring countries outside the EU. | W9: =O9+S9 -> 4622 | Z9: =IF(TRIM(Y9)="", "", IF(VLOOKUP(Y9,'Footnotes list'!$B$5:$C$103,2,FALSE)=0,"",VLOOKUP(Y9,'Footnotes list'!$B$5:$C$103,2,FALSE) ) ) ->  | AD9: =IF(TRIM(AC9)="", "", IF(VLOOKUP(AC9,'Footnotes list'!$B$5:$C$103,2,FALSE)=0,"",VLOOKUP(AC9,'Footnotes list'!$B$5:$C$103,2,FALSE) ) ) ->  | AE9: 9951 | AH9: =IF(TRIM(AG9)="", "", IF(VLOOKUP(AG9,'Footnotes list'!$B$5:$C$103,2,FALSE)=0,"",VLOOKUP(AG9,'Footnotes list'!$B$5:$C$103,2,FALSE) ) ) ->  | AI9: 0 | AL9: =IF(TRIM(AK9)="", "", IF(VLOOKUP(AK9,'Footnotes list'!$B$5:$C$103,2,FALSE)=0,"",VLOOKUP(AK9,'Footnotes list'!$B$5:$C$103,2,FALSE) ) ) -> 
C10: T | D10: W150104 | F10: Metal (total) (5) | G10: =IF(TRIM(CONCATENATE(G11,G12))="","",SUM(G11,G12)) -> 5176 | J10: =IF(TRIM(I10)="", "", IF(VLOOKUP(I10,'Footnotes list'!$B$5:$C$103,2,FALSE)=0,"",VLOOKUP(I10,'Footnotes list'!$B$5:$C$103,2,FALSE) ) ) ->  | K10: =IF(TRIM(CONCATENATE(K11,K12))="","",SUM(K11,K12)) -> 29 | N10: =IF(TRIM(M10)="", "", IF(VLOOKUP(M10,'Footnotes list'!$B$5:$C$103,2,FALSE)=0,"",VLOOKUP(M10,'Footnotes list'!$B$5:$C$103,2,FALSE) ) ) ->  | O10: =IF(TRIM(CONCATENATE(O11,O12))="","",SUM(O11,O12)) -> 4779 | R10: =IF(TRIM(Q10)="", "", IF(VLOOKUP(Q10,'Footnotes list'!$B$5:$C$103,2,FALSE)=0,"",VLOOKUP(Q10,'Footnotes list'!$B$5:$C$103,2,FALSE) ) ) ->  | S10: =IF(TRIM(CONCATENATE(S11,S12))="","",SUM(S11,S12)) -> 0 | V10: =IF(TRIM(U10)="", "", IF(VLOOKUP(U10,'Footnotes list'!$B$5:$C$103,2,FALSE)=0,"",VLOOKUP(U10,'Footnotes list'!$B$5:$C$103,2,FALSE) ) ) ->  | W10: =IF(TRIM(CONCATENATE(W11,W12))="","",SUM(W11,W12)) -> 4808 | Z10: =IF(TRIM(Y10)="", "", IF(VLOOKUP(Y10,'Footnotes list'!$B$5:$C$103,2,FALSE)=0,"",VLOOKUP(Y10,'Footnotes list'!$B$5:$C$103,2,FALSE) ) ) ->  | AE10: =IF(TRIM(CONCATENATE(AE11,AE12))="","",SUM(AE11,AE12)) -> 0 | AH10: =IF(TRIM(AG10)="", "", IF(VLOOKUP(AG10,'Footnotes list'!$B$5:$C$103,2,FALSE)=0,"",VLOOKUP(AG10,'Footnotes list'!$B$5:$C$103,2,FALSE) ) ) ->  | AI10: =IF(TRIM(CONCATENATE(AI11,AI12))="","",SUM(AI11,AI12)) -> 0 | AL10: =IF(TRIM(AK10)="", "", IF(VLOOKUP(AK10,'Footnotes list'!$B$5:$C$103,2,FALSE)=0,"",VLOOKUP(AK10,'Footnotes list'!$B$5:$C$103,2,FALSE) ) ) -> 
C11: T | D11: W15010402 | F11: Ferrous metal | G11: =5176-G12 -> 3132 | J11: =IF(TRIM(I11)="", "", IF(VLOOKUP(I11,'Footnotes list'!$B$5:$C$103,2,FALSE)=0,"",VLOOKUP(I11,'Footnotes list'!$B$5:$C$103,2,FALSE) ) ) ->  | K11: 29 | L11: E | N11: =IF(TRIM(M11)="", "", IF(VLOOKUP(M11,'Footnotes list'!$B$5:$C$103,2,FALSE)=0,"",VLOOKUP(M11,'Footnotes list'!$B$5:$C$103,2,FALSE) ) ) ->  | O11: =4808-K11-O12 -> 2880 | Q11: 1 | R11: =IF(TRIM(Q11)="", "", IF(VLOOKUP(Q11,'Footnotes list'!$B$5:$C$103,2,FALSE)=0,"",VLOOKUP(Q11,'Footnotes list'!$B$5:$C$103,2,FALSE) ) ) -> The main sorting facility for municipal plastic packaging waste was upgraded in 2018. This has led to reduced amount of plastic packaging being recycled, compared to 2017, as packaging waste was not recycled or carried over into 2019. | S11: 0 | T11: E | U11: 5 | V11: =IF(TRIM(U11)="", "", IF(VLOOKUP(U11,'Footnotes list'!$B$5:$C$103,2,FALSE)=0,"",VLOOKUP(U11,'Footnotes list'!$B$5:$C$103,2,FALSE) ) ) -> Luxembourg does not export waste directly outside the EU. For all packaging waste collected via the official household packaging scheme (valorlux) LU knows that the end user of those waste streams are all located in the EU. LU can however not exclude that some of the packaging waste collected by other waste handlers does not transit via neighbouring countries outside the EU. | W11: =O11+S11+K11 -> 2909 | Z11: =IF(TRIM(Y11)="", "", IF(VLOOKUP(Y11,'Footnotes list'!$B$5:$C$103,2,FALSE)=0,"",VLOOKUP(Y11,'Footnotes list'!$B$5:$C$103,2,FALSE) ) ) ->  | AI11: 0 | AL11: =IF(TRIM(AK11)="", "", IF(VLOOKUP(AK11,'Footnotes list'!$B$5:$C$103,2,FALSE)=0,"",VLOOKUP(AK11,'Footnotes list'!$B$5:$C$103,2,FALSE) ) ) -> 
C12: T | D12: W15010401 | F12: Aluminium | G12: 2044 | H12: E | I12: 2 | J12: =IF(TRIM(I12)="", "", IF(VLOOKUP(I12,'Footnotes list'!$B$5:$C$103,2,FALSE)=0,"",VLOOKUP(I12,'Footnotes list'!$B$5:$C$103,2,FALSE) ) ) -> Data on aluminium packaging is used from the EPR scheme. Currently the EPR scheme does only cover residential packaging. For aluminium packaging it can however be assumed that there is no commercial packaging. | K12: 0 | L12: E | N12: =IF(TRIM(M12)="", "", IF(VLOOKUP(M12,'Footnotes list'!$B$5:$C$103,2,FALSE)=0,"",VLOOKUP(M12,'Footnotes list'!$B$5:$C$103,2,FALSE) ) ) ->  | O12: =ROUND(4808*(G12/(G12+G11)),0) -> 1899 | R12: =IF(TRIM(Q12)="", "", IF(VLOOKUP(Q12,'Footnotes list'!$B$5:$C$103,2,FALSE)=0,"",VLOOKUP(Q12,'Footnotes list'!$B$5:$C$103,2,FALSE) ) ) ->  | S12: 0 | T12: E | U12: 5 | V12: =IF(TRIM(U12)="", "", IF(VLOOKUP(U12,'Footnotes list'!$B$5:$C$103,2,FALSE)=0,"",VLOOKUP(U12,'Footnotes list'!$B$5:$C$103,2,FALSE) ) ) -> Luxembourg does not export waste directly outside the EU. For all packaging waste collected via the official household packaging scheme (valorlux) LU knows that the end user of those waste streams are all located in the EU. LU can however not exclude that some of the packaging waste collected by other waste handlers does not transit via neighbouring countries outside the EU. | W12: =O12+S12 -> 1899 | Z12: =IF(TRIM(Y12)="", "", IF(VLOOKUP(Y12,'Footnotes list'!$B$5:$C$103,2,FALSE)=0,"",VLOOKUP(Y12,'Footnotes list'!$B$5:$C$103,2,FALSE) ) ) ->  | AE12: 0 | AF12: E | AG12: 2 | AH12: =IF(TRIM(AG12)="", "", IF(VLOOKUP(AG12,'Footnotes list'!$B$5:$C$103,2,FALSE)=0,"",VLOOKUP(AG12,'Footnotes list'!$B$5:$C$103,2,FALSE) ) ) -> Data on aluminium packaging is used from the EPR scheme. Currently the EPR scheme does only cover residential packaging. For aluminium packaging it can however be assumed that there is no commercial packaging. | AI12: 0 | AL12: =IF(TRIM(AK12)="", "", IF(VLOOKUP(AK12,'Footnotes list'!$B$5:$C$103,2,FALSE)=0,"",VLOOKUP(AK12,'Footnotes list'!$B$5:$C$103,2,FALSE) ) ) -> 
C13: T | D13: W15010402_IBA | F13: Ferrous metal from IBA (6) | N13: =IF(TRIM(M13)="", "", IF(VLOOKUP(M13,'Footnotes list'!$B$5:$C$103,2,FALSE)=0,"",VLOOKUP(M13,'Footnotes list'!$B$5:$C$103,2,FALSE) ) ) ->  | R13: =IF(TRIM(Q13)="", "", IF(VLOOKUP(Q13,'Footnotes list'!$B$5:$C$103,2,FALSE)=0,"",VLOOKUP(Q13,'Footnotes list'!$B$5:$C$103,2,FALSE) ) ) ->  | V13: =IF(TRIM(U13)="", "", IF(VLOOKUP(U13,'Footnotes list'!$B$5:$C$103,2,FALSE)=0,"",VLOOKUP(U13,'Footnotes list'!$B$5:$C$103,2,FALSE) ) ) ->  | Z13: =IF(TRIM(Y13)="", "", IF(VLOOKUP(Y13,'Footnotes list'!$B$5:$C$103,2,FALSE)=0,"",VLOOKUP(Y13,'Footnotes list'!$B$5:$C$103,2,FALSE) ) ) -> 
C14: T | D14: W15010401_IBA | F14: Aluminium from IBA (7) | N14: =IF(TRIM(M14)="", "", IF(VLOOKUP(M14,'Footnotes list'!$B$5:$C$103,2,FALSE)=0,"",VLOOKUP(M14,'Footnotes list'!$B$5:$C$103,2,FALSE) ) ) ->  | R14: =IF(TRIM(Q14)="", "", IF(VLOOKUP(Q14,'Footnotes list'!$B$5:$C$103,2,FALSE)=0,"",VLOOKUP(Q14,'Footnotes list'!$B$5:$C$103,2,FALSE) ) ) ->  | V14: =IF(TRIM(U14)="", "", IF(VLOOKUP(U14,'Footnotes list'!$B$5:$C$103,2,FALSE)=0,"",VLOOKUP(U14,'Footnotes list'!$B$5:$C$103,2,FALSE) ) ) ->  | Z14: =IF(TRIM(Y14)="", "", IF(VLOOKUP(Y14,'Footnotes list'!$B$5:$C$103,2,FALSE)=0,"",VLOOKUP(Y14,'Footnotes list'!$B$5:$C$103,2,FALSE) ) ) -> 
C15: T | D15: W150107 | F15: Glass | G15: 34600 | J15: =IF(TRIM(I15)="", "", IF(VLOOKUP(I15,'Footnotes list'!$B$5:$C$103,2,FALSE)=0,"",VLOOKUP(I15,'Footnotes list'!$B$5:$C$103,2,FALSE) ) ) ->  | K15: 0 | N15: =IF(TRIM(M15)="", "", IF(VLOOKUP(M15,'Footnotes list'!$B$5:$C$103,2,FALSE)=0,"",VLOOKUP(M15,'Footnotes list'!$B$5:$C$103,2,FALSE) ) ) ->  | O15: 33999 | R15: =IF(TRIM(Q15)="", "", IF(VLOOKUP(Q15,'Footnotes list'!$B$5:$C$103,2,FALSE)=0,"",VLOOKUP(Q15,'Footnotes list'!$B$5:$C$103,2,FALSE) ) ) ->  | S15: 0 | T15: E | U15: 5 | V15: =IF(TRIM(U15)="", "", IF(VLOOKUP(U15,'Footnotes list'!$B$5:$C$103,2,FALSE)=0,"",VLOOKUP(U15,'Footnotes list'!$B$5:$C$103,2,FALSE) ) ) -> Luxembourg does not export waste directly outside the EU. For all packaging waste collected via the official household packaging scheme (valorlux) LU knows that the end user of those waste streams are all located in the EU. LU can however not exclude that some of the packaging waste collected by other waste handlers does not transit via neighbouring countries outside the EU. | W15: =O15+S15 -> 33999 | Z15: =IF(TRIM(Y15)="", "", IF(VLOOKUP(Y15,'Footnotes list'!$B$5:$C$103,2,FALSE)=0,"",VLOOKUP(Y15,'Footnotes list'!$B$5:$C$103,2,FALSE) ) ) ->  | AI15: 0 | AL15: =IF(TRIM(AK15)="", "", IF(VLOOKUP(AK15,'Footnotes list'!$B$5:$C$103,2,FALSE)=0,"",VLOOKUP(AK15,'Footnotes list'!$B$5:$C$103,2,FALSE) ) ) -> 
C16: T | D16: W150101 | F16: Paper and cardboard | G16: 55903 | J16: =IF(TRIM(I16)="", "", IF(VLOOKUP(I16,'Footnotes list'!$B$5:$C$103,2,FALSE)=0,"",VLOOKUP(I16,'Footnotes list'!$B$5:$C$103,2,FALSE) ) ) ->  | K16: 0 | N16: =IF(TRIM(M16)="", "", IF(VLOOKUP(M16,'Footnotes list'!$B$5:$C$103,2,FALSE)=0,"",VLOOKUP(M16,'Footnotes list'!$B$5:$C$103,2,FALSE) ) ) ->  | O16: 44826 | R16: =IF(TRIM(Q16)="", "", IF(VLOOKUP(Q16,'Footnotes list'!$B$5:$C$103,2,FALSE)=0,"",VLOOKUP(Q16,'Footnotes list'!$B$5:$C$103,2,FALSE) ) ) ->  | S16: 0 | T16: E | U16: 5 | V16: =IF(TRIM(U16)="", "", IF(VLOOKUP(U16,'Footnotes list'!$B$5:$C$103,2,FALSE)=0,"",VLOOKUP(U16,'Footnotes list'!$B$5:$C$103,2,FALSE) ) ) -> Luxembourg does not export waste directly outside the EU. For all packaging waste collected via the official household packaging scheme (valorlux) LU knows that the end user of those waste streams are all located in the EU. LU can however not exclude that some of the packaging waste collected by other waste handlers does not transit via neighbouring countries outside the EU. | W16: =O16+S16 -> 44826 | Z16: =IF(TRIM(Y16)="", "", IF(VLOOKUP(Y16,'Footnotes list'!$B$5:$C$103,2,FALSE)=0,"",VLOOKUP(Y16,'Footnotes list'!$B$5:$C$103,2,FALSE) ) ) ->  | AE16: 7944 | AH16: =IF(TRIM(AG16)="", "", IF(VLOOKUP(AG16,'Footnotes list'!$B$5:$C$103,2,FALSE)=0,"",VLOOKUP(AG16,'Footnotes list'!$B$5:$C$103,2,FALSE) ) ) ->  | AI16: 0 | AL16: =IF(TRIM(AK16)="", "", IF(VLOOKUP(AK16,'Footnotes list'!$B$5:$C$103,2,FALSE)=0,"",VLOOKUP(AK16,'Footnotes list'!$B$5:$C$103,2,FALSE) ) ) -> 
C17: T | D17: W150199 | F17: Other | G17: 1 | I17: 3 | J17: =IF(TRIM(I17)="", "", IF(VLOOKUP(I17,'Footnotes list'!$B$5:$C$103,2,FALSE)=0,"",VLOOKUP(I17,'Footnotes list'!$B$5:$C$103,2,FALSE) ) ) -> In previous submission the category "other packaging" was used for composite materials. As this is not in line with the calculation method LU has taken the assumption that 50% of composite packaging is cardboard and 50% is plastic. LU will carry out more analysis in order to fully comply with the calculation method in futur reports. | K17: 0 | N17: =IF(TRIM(M17)="", "", IF(VLOOKUP(M17,'Footnotes list'!$B$5:$C$103,2,FALSE)=0,"",VLOOKUP(M17,'Footnotes list'!$B$5:$C$103,2,FALSE) ) ) ->  | O17: 0 | R17: =IF(TRIM(Q17)="", "", IF(VLOOKUP(Q17,'Footnotes list'!$B$5:$C$103,2,FALSE)=0,"",VLOOKUP(Q17,'Footnotes list'!$B$5:$C$103,2,FALSE) ) ) ->  | S17: 0 | T17: E | U17: 5 | V17: =IF(TRIM(U17)="", "", IF(VLOOKUP(U17,'Footnotes list'!$B$5:$C$103,2,FALSE)=0,"",VLOOKUP(U17,'Footnotes list'!$B$5:$C$103,2,FALSE) ) ) -> Luxembourg does not export waste directly outside the EU. For all packaging waste collected via the official household packaging scheme (valorlux) LU knows that the end user of those waste streams are all located in the EU. LU can however not exclude that some of the packaging waste collected by other waste handlers does not transit via neighbouring countries outside the EU. | W17: 0 | Z17: =IF(TRIM(Y17)="", "", IF(VLOOKUP(Y17,'Footnotes list'!$B$5:$C$103,2,FALSE)=0,"",VLOOKUP(Y17,'Footnotes list'!$B$5:$C$103,2,FALSE) ) ) ->  | AE17: 0 | AH17: =IF(TRIM(AG17)="", "", IF(VLOOKUP(AG17,'Footnotes list'!$B$5:$C$103,2,FALSE)=0,"",VLOOKUP(AG17,'Footnotes list'!$B$5:$C$103,2,FALSE) ) ) ->  | AI17: 0 | AL17: =IF(TRIM(AK17)="", "", IF(VLOOKUP(AK17,'Footnotes list'!$B$5:$C$103,2,FALSE)=0,"",VLOOKUP(AK17,'Footnotes list'!$B$5:$C$103,2,FALSE) ) ) -> 
C18: T | D18: W1501 | F18: Total (4) | G18: =IF(TRIM(CONCATENATE(G8,G9,G10,G15,G16,G17))="","",SUM(G8,G9,G10,G15,G16,G17)) -> 136205 | J18: =IF(TRIM(I18)="", "", IF(VLOOKUP(I18,'Footnotes list'!$B$5:$C$103,2,FALSE)=0,"",VLOOKUP(I18,'Footnotes list'!$B$5:$C$103,2,FALSE) ) ) ->  | K18: =IF(TRIM(CONCATENATE(K8,K9,K10,K15,K16,K17))="","",SUM(K8,K9,K10,K15,K16,K17)) -> 29 | N18: =IF(TRIM(M18)="", "", IF(VLOOKUP(M18,'Footnotes list'!$B$5:$C$103,2,FALSE)=0,"",VLOOKUP(M18,'Footnotes list'!$B$5:$C$103,2,FALSE) ) ) ->  | O18: =IF(TRIM(CONCATENATE(O8,O9,O10,O15,O16,O17))="","",SUM(O8,O9,O10,O15,O16,O17)) -> 96605 | R18: =IF(TRIM(Q18)="", "", IF(VLOOKUP(Q18,'Footnotes list'!$B$5:$C$103,2,FALSE)=0,"",VLOOKUP(Q18,'Footnotes list'!$B$5:$C$103,2,FALSE) ) ) ->  | S18: =IF(TRIM(CONCATENATE(S8,S9,S10,S15,S16,S17))="","",SUM(S8,S9,S10,S15,S16,S17)) -> 0 | T18: E | U18: 5 | V18: =IF(TRIM(U18)="", "", IF(VLOOKUP(U18,'Footnotes list'!$B$5:$C$103,2,FALSE)=0,"",VLOOKUP(U18,'Footnotes list'!$B$5:$C$103,2,FALSE) ) ) -> Luxembourg does not export waste directly outside the EU. For all packaging waste collected via the official household packaging scheme (valorlux) LU knows that the end user of those waste streams are all located in the EU. LU can however not exclude that some of the packaging waste collected by other waste handlers does not transit via neighbouring countries outside the EU. | W18: =IF(TRIM(CONCATENATE(W8,W9,W10,W15,W16,W17))="","",SUM(W8,W9,W10,W15,W16,W17)) -> 96634 | Z18: =IF(TRIM(Y18)="", "", IF(VLOOKUP(Y18,'Footnotes list'!$B$5:$C$103,2,FALSE)=0,"",VLOOKUP(Y18,'Footnotes list'!$B$5:$C$103,2,FALSE) ) ) ->  | AA18: =IF(TRIM(AA9)="","",AA9) ->  | AD18: =IF(TRIM(AC18)="", "", IF(VLOOKUP(AC18,'Footnotes list'!$B$5:$C$103,2,FALSE)=0,"",VLOOKUP(AC18,'Footnotes list'!$B$5:$C$103,2,FALSE) ) ) ->  | AE18: =IF(TRIM(CONCATENATE(AE8,AE9,AE10,AE15,AE16,AE17))="","",SUM(AE8,AE9,AE10,AE15,AE16,AE17)) -> 31548 | AH18: =IF(TRIM(AG18)="", "", IF(VLOOKUP(AG18,'Footnotes list'!$B$5:$C$103,2,FALSE)=0,"",VLOOKUP(AG18,'Footnotes list'!$B$5:$C$103,2,FALSE) ) ) ->  | AI18: =IF(TRIM(CONCATENATE(AI8,AI9,AI10,AI15,AI16,AI17))="","",SUM(AI8,AI9,AI10,AI15,AI16,AI17)) -> 0 | AL18: =IF(TRIM(AK18)="", "", IF(VLOOKUP(AK18,'Footnotes list'!$B$5:$C$103,2,FALSE)=0,"",VLOOKUP(AK18,'Footnotes list'!$B$5:$C$103,2,FALSE) ) ) -> 
F20: Notes:
F21: Cell shading:
F22: White: Data provision is mandatory.
F23: Light grey: The calculation of data is automatic. They can be edited after unlocking the cell with the button "Unlock formulas".
F24: Light orange: Footnotes (only to be filled-in when relevant)
F25: Black: Not applicable.
F26: Light purple shaded boxes: reporting is mandatory only to Member States that include those amounts in the recycling rates. Member States that report on repair of wooden packaging shall not include these amounts in total recycling or in total waste generated or in any other white box! Instead, please indicate in the sheet Metadata if you wish to include the amounts in your recycling rates. The calculation of the adjusted recycling rates will be conducted by the Commission according to the method set out in the guidance document.
F28: (a) The amounts reported shall exclude the amount of wooden packaging repaired and of metals from IBA. For repair of wooden pallets, the Commission will calculate the adjusted recycling rates separately.
F29: (1) Commission Decision 2005/270/EC establishing the formats relating to Directive 94/62/EC on packaging and packaging waste as last amended by Commission Implementing Decision 2019/665
F30: (2) This includes incineration with energy recovery and the reprocessing of waste to be used as fuel or other means to generate energy.
F31: (3) This excludes repair of wooden packaging, recycling and energy recovery and includes backfilling.
F32: (4) The 'Total' row should be a sum of all the amounts given in the separate rows within the table (except only one of either the 'Metal (total)' or 'Ferrous metal' and 'Aluminium' rows should be included, to ensure there is no double counting).
F33: (5) The 'Metal (total)' row should be equal to the sum of the 'Ferrous metal' and 'Aluminium' rows.
F34: (6) Ferrous metals recycled after their separation from incineration bottom ash shall be reported separately here and shall be included in the row for reporting ferrous metals.
F35: (7) Aluminium recycled after separation from incineration bottom ash shall be reported separately here and shall be included in the row for reporting aluminium.

Sheet Table_1a
E2: TABLE 1a. Generation and recycling of packaging waste calculated according to the old rules as set out in Articles 3, 4 and 5 of Decision 2005/270/EC (1) for proving compliance with the old recycling targets in Article 6 (1) of Directive 94/62/EC ( in tonnes) - to be filled in only by the Member States wanting to prove compliance with the old targets until 2025 (and beyond) using the old rules.
E3: Country: | F3: ='Basic instructions'!J11 -> LU | G3: =IF('Basic instructions'!G11="","",'Basic instructions'!G11) -> Luxembourg
E4: Reference year: | F4: =IF('Basic instructions'!G12="","",'Basic instructions'!G12) -> 2018
E6: wst_oper ==> | G6: GEN_ORT | K6: RCY_ORT
E7: Material | G7: Packaging waste generated according to the old calculation rules | H7: Standard footnotes | I7: Explanatory footnote | K7: Packaging waste recycled according to the old calculation rules | L7: Standard footnotes | M7: Explanatory footnote
A8: T | B8: W150107 | E8: Glass | J8: =IF(TRIM(I8)="", "", IF(VLOOKUP(I8,'Footnotes list'!$B$5:$C$103,2,FALSE)=0,"",VLOOKUP(I8,'Footnotes list'!$B$5:$C$103,2,FALSE) ) ) ->  | N8: =IF(TRIM(M8)="", "", IF(VLOOKUP(M8,'Footnotes list'!$B$5:$C$103,2,FALSE)=0,"",VLOOKUP(M8,'Footnotes list'!$B$5:$C$103,2,FALSE) ) ) -> 
A9: T | B9: W150102 | E9: Plastic | J9: =IF(TRIM(I9)="", "", IF(VLOOKUP(I9,'Footnotes list'!$B$5:$C$103,2,FALSE)=0,"",VLOOKUP(I9,'Footnotes list'!$B$5:$C$103,2,FALSE) ) ) ->  | N9: =IF(TRIM(M9)="", "", IF(VLOOKUP(M9,'Footnotes list'!$B$5:$C$103,2,FALSE)=0,"",VLOOKUP(M9,'Footnotes list'!$B$5:$C$103,2,FALSE) ) ) -> 
A10: T | B10: W150101 | E10: Paper and board | J10: =IF(TRIM(I10)="", "", IF(VLOOKUP(I10,'Footnotes list'!$B$5:$C$103,2,FALSE)=0,"",VLOOKUP(I10,'Footnotes list'!$B$5:$C$103,2,FALSE) ) ) ->  | N10: =IF(TRIM(M10)="", "", IF(VLOOKUP(M10,'Footnotes list'!$B$5:$C$103,2,FALSE)=0,"",VLOOKUP(M10,'Footnotes list'!$B$5:$C$103,2,FALSE) ) ) -> 
A11: T | B11: W15010401 | E11: Metal | F11: Aluminium | J11: =IF(TRIM(I11)="", "", IF(VLOOKUP(I11,'Footnotes list'!$B$5:$C$103,2,FALSE)=0,"",VLOOKUP(I11,'Footnotes list'!$B$5:$C$103,2,FALSE) ) ) ->  | N11: =IF(TRIM(M11)="", "", IF(VLOOKUP(M11,'Footnotes list'!$B$5:$C$103,2,FALSE)=0,"",VLOOKUP(M11,'Footnotes list'!$B$5:$C$103,2,FALSE) ) ) -> 
A12: T | B12: W15010402 | F12: Steel | J12: =IF(TRIM(I12)="", "", IF(VLOOKUP(I12,'Footnotes list'!$B$5:$C$103,2,FALSE)=0,"",VLOOKUP(I12,'Footnotes list'!$B$5:$C$103,2,FALSE) ) ) ->  | N12: =IF(TRIM(M12)="", "", IF(VLOOKUP(M12,'Footnotes list'!$B$5:$C$103,2,FALSE)=0,"",VLOOKUP(M12,'Footnotes list'!$B$5:$C$103,2,FALSE) ) ) -> 
A13: T | B13: W150104 | F13: Total | J13: =IF(TRIM(I13)="", "", IF(VLOOKUP(I13,'Footnotes list'!$B$5:$C$103,2,FALSE)=0,"",VLOOKUP(I13,'Footnotes list'!$B$5:$C$103,2,FALSE) ) ) ->  | N13: =IF(TRIM(M13)="", "", IF(VLOOKUP(M13,'Footnotes list'!$B$5:$C$103,2,FALSE)=0,"",VLOOKUP(M13,'Footnotes list'!$B$5:$C$103,2,FALSE) ) ) -> 
A14: T | B14: W150103 | E14: Wood | J14: =IF(TRIM(I14)="", "", IF(VLOOKUP(I14,'Footnotes list'!$B$5:$C$103,2,FALSE)=0,"",VLOOKUP(I14,'Footnotes list'!$B$5:$C$103,2,FALSE) ) ) ->  | N14: =IF(TRIM(M14)="", "", IF(VLOOKUP(M14,'Footnotes list'!$B$5:$C$103,2,FALSE)=0,"",VLOOKUP(M14,'Footnotes list'!$B$5:$C$103,2,FALSE) ) ) -> 
A15: T | B15: W150199 | E15: Other | J15: =IF(TRIM(I15)="", "", IF(VLOOKUP(I15,'Footnotes list'!$B$5:$C$103,2,FALSE)=0,"",VLOOKUP(I15,'Footnotes list'!$B$5:$C$103,2,FALSE) ) ) ->  | N15: =IF(TRIM(M15)="", "", IF(VLOOKUP(M15,'Footnotes list'!$B$5:$C$103,2,FALSE)=0,"",VLOOKUP(M15,'Footnotes list'!$B$5:$C$103,2,FALSE) ) ) -> 
A16: T | B16: W1501 | E16: Total | G16: =IF(TRIM(CONCATENATE(G8,G9,G10,G13,G14,G15))="","",SUM(G8,G9,G10,G13,G14,G15)) ->  | J16: =IF(TRIM(I16)="", "", IF(VLOOKUP(I16,'Footnotes list'!$B$5:$C$103,2,FALSE)=0,"",VLOOKUP(I16,'Footnotes list'!$B$5:$C$103,2,FALSE) ) ) ->  | K16: =IF(TRIM(CONCATENATE(K8,K9,K10,K13,K14,K15))="","",SUM(K8,K9,K10,K13,K14,K15)) ->  | N16: =IF(TRIM(M16)="", "", IF(VLOOKUP(M16,'Footnotes list'!$B$5:$C$103,2,FALSE)=0,"",VLOOKUP(M16,'Footnotes list'!$B$5:$C$103,2,FALSE) ) ) -> 
E18: Notes:
E19: This table is only for those Member States wishing to report against the old recycling targets in Article 6 of Directive 94/62/EC using the old calculation rules. If you have already used Table 1 to report data according the old calculations rules, there is no need to complete Table 1a. Those Member States reporting against the old and new recycling targets according to the new calculation rules, do not need to complete this table.
E20: Cell shading:
E21: White: Data provision is mandatory for those Member States wishing to report against the old recycling targets in Article 6 of Directive 94/62/EC using the old calculation rules (only if they have reported data according the new calculation rules in Table 1)
E22: Light grey: The calculation of data is automatic. Can be edited after unlocking the cell with the button "Unlock formulas".
E23: Light blue: provision of data is voluntary.
E24: Light orange: Footnotes (only to be filled-in when relevant)
E27: (1) Commission Decision 2005/270/EC establishing the formats relating to Directive 94/62/EC on packaging and packaging waste
E28: Recycling rate (%) for the purpose of Article 6(1) of Directive 94/62/EC will be calculated as packaging waste recycled divided by packaging waste generated x 100

Sheet Table_2
F1: Table 2. Adjusted level of the targets in accordance with Article 5(2) of Directive 94/62/EC (1)
F2: Country: | G2: ='Basic instructions'!J11 -> LU | H2: =IF('Basic instructions'!G11="","",'Basic instructions'!G11) -> Luxembourg
F3: Reference year: | G3: =IF('Basic instructions'!G12="","",'Basic instructions'!G12) -> 2018
F4: wst_oper ==> | G4: FMKT_RE_S | H4: FMKT_RE_S | I4: FMKT_RE_S | J4: FMKT_RE_S
F5: time ==> | G5: =$G$3 -3 -> 2015 | H5: =$G$3 -2 -> 2016 | I5: =$G$3 -1 -> 2017 | J5: =G3 -> 2018
F6: 1 | G6: 2 | H6: 3 | I6: 4 | J6: 5
A7: unit | B7: waste | F7: Packaging waste material | G7: =CONCATENATE("Share of reusable sales packaging in all sales packaging year ",$G$3-3," (%)") -> Share of reusable sales packaging in all sales packaging year 2015 (%) | H7: =CONCATENATE("Share of reusable sales packaging in all sales packaging year ", $G$3 -2," (%)") -> Share of reusable sales packaging in all sales packaging year 2016 (%) | I7: =CONCATENATE("Share of reusable sales packaging in all sales packaging year ", $G$3 -1," (%)") -> Share of reusable sales packaging in all sales packaging year 2017 (%) | J7: =CONCATENATE("Average share of reusable sales packaging in the three years preceding year ", G3) -> Average share of reusable sales packaging in the three years preceding year 2018
A8: PC | B8: W150102 | F8: Plastic | J8: =IF(G8+H8+I8=0, "",AVERAGE(G8,H8,I8)) -> 
A9: PC | B9: W150103 | F9: Wood | J9: =IF(G9+H9+I9=0, "",AVERAGE(G9,H9,I9)) -> 
A10: PC | B10: W15010402 | F10: Ferrous metal
A11: PC | B11: W15010401 | F11: Aluminium
A12: PC | B12: W150107 | F12: Glass
A13: PC | B13: W150101 | F13: Paper and cardboard
A14: PC | B14: W1501 | F14: Total
F16: Notes:
F17: This table can be completed if you want to make use – in accordance with Article 5(2) of Directive 94/62 - of the adjusted level for the recycling targets in Article 6(1)(f) to (i) of Directive 94/62. These targets apply from reference years 2025 respectively 2030. In principle, Table 3 contains the necessary information for completing Table 2. Then, from reference year 2023 onwards, the necessary information to complete Table 2 for three previous years can be derived from Table 3 as reported for the previous reference years. If a Member State wishes to see the distance to target for the 2025 targets already before, it is possible to complete the data for Table 2 for the three previous reference years (2017, 2016, 2015) if such data are available. Filling in these earlier years is voluntary.
F19: Cell shading:
F20: Light grey: the calculation of data is automatic and represents the simple average of columns 2, 3 and 4.
F21: Light blue: data is mandatory only for the material for which the Member State has decided to achieve an adjusted target.
F23: (1) Directive 94/62/EC on packaging and packaging waste as last amended by Directive 2018/852.

Sheet Table_3
F1: TABLE 3. Reporting on reusable packaging as established by Commission Decision 2005/270/EC as last amended by Commission Implementing Decision 2019/665 (1)
F2: Country: | G2: ='Basic instructions'!J11 -> LU | H2: =IF('Basic instructions'!G11="","",'Basic instructions'!G11) -> Luxembourg
F3: Reference year: | G3: =IF('Basic instructions'!G12="","",'Basic instructions'!G12) -> 2018
F4: unit ==> | G4: T | K4: NR | O4: T | S4: NR | W4: T | AA4: T | AE4: T | AI4: NR | AM4: T | AQ4: NR
F5: wst_oper | G5: FMKT | K5: FMKT | O5: FMKT_S | S5: FMKT_S | W5: FMKT_RE | AA5: FMKT_RE_S | AE5: ROTY_RE | AI5: ROTY_RE | AM5: ROTY_RE_S | AQ5: ROTY_RE_S
F6: 1 | G6: 2 | K6: 3 | O6: 4 | S6: 5 | W6: 6 | AA6: 7 | AE6: 8 | AI6: 9 | AM6: 10 | AQ6: 11
F7: Packaging material | G7: Packaging placed on the market for the first time | W7: Reusable packaging placed on the market for the first time | AE7: Rotations per year (4)
G8: All packaging (2) | O8: Sales packaging (3) | W8: All reusable packaging | AA8: Reusable sales packaging | AE8: All reusable packaging | AM8: Reusable sales packaging
D9: waste | G9: (t) | H9: Standard footnotes | I9: Explanatory footnote | K9: (units) | L9: Standard footnotes | M9: Explanatory footnote | O9: (t) | P9: Standard footnotes | Q9: Explanatory footnote | S9: (units) | T9: Standard footnotes | U9: Explanatory footnote | W9: (t) | X9: Standard footnotes | Y9: Explanatory footnote | AA9: (t) | AB9: Standard footnotes | AC9: Explanatory footnote | AE9: (t) (5) | AF9: Standard footnotes | AG9: Explanatory footnote | AI9: (number) | AJ9: Standard footnotes | AK9: Explanatory footnote | AM9: (t) (5) | AN9: Standard footnotes | AO9: Explanatory footnote | AQ9: (number) | AR9: Standard footnotes | AS9: Explanatory footnote
D10: W150102 | F10: Plastic | J10: =IF(TRIM(I10)="", "", IF(VLOOKUP(I10,'Footnotes list'!$B$5:$C$103,2,FALSE)=0,"",VLOOKUP(I10,'Footnotes list'!$B$5:$C$103,2,FALSE) ) ) ->  | N10: =IF(TRIM(M10)="", "", IF(VLOOKUP(M10,'Footnotes list'!$B$5:$C$103,2,FALSE)=0,"",VLOOKUP(M10,'Footnotes list'!$B$5:$C$103,2,FALSE) ) ) ->  | R10: =IF(TRIM(Q10)="", "", IF(VLOOKUP(Q10,'Footnotes list'!$B$5:$C$103,2,FALSE)=0,"",VLOOKUP(Q10,'Footnotes list'!$B$5:$C$103,2,FALSE) ) ) ->  | V10: =IF(TRIM(U10)="", "", IF(VLOOKUP(U10,'Footnotes list'!$B$5:$C$103,2,FALSE)=0,"",VLOOKUP(U10,'Footnotes list'!$B$5:$C$103,2,FALSE) ) ) ->  | Z10: =IF(TRIM(Y10)="", "", IF(VLOOKUP(Y10,'Footnotes list'!$B$5:$C$103,2,FALSE)=0,"",VLOOKUP(Y10,'Footnotes list'!$B$5:$C$103,2,FALSE) ) ) ->  | AD10: =IF(TRIM(AC10)="", "", IF(VLOOKUP(AC10,'Footnotes list'!$B$5:$C$103,2,FALSE)=0,"",VLOOKUP(AC10,'Footnotes list'!$B$5:$C$103,2,FALSE) ) ) ->  | AH10: =IF(TRIM(AG10)="", "", IF(VLOOKUP(AG10,'Footnotes list'!$B$5:$C$103,2,FALSE)=0,"",VLOOKUP(AG10,'Footnotes list'!$B$5:$C$103,2,FALSE) ) ) ->  | AL10: =IF(TRIM(AK10)="", "", IF(VLOOKUP(AK10,'Footnotes list'!$B$5:$C$103,2,FALSE)=0,"",VLOOKUP(AK10,'Footnotes list'!$B$5:$C$103,2,FALSE) ) ) ->  | AP10: =IF(TRIM(AO10)="", "", IF(VLOOKUP(AO10,'Footnotes list'!$B$5:$C$103,2,FALSE)=0,"",VLOOKUP(AO10,'Footnotes list'!$B$5:$C$103,2,FALSE) ) ) ->  | AT10: =IF(TRIM(AS10)="", "", IF(VLOOKUP(AS10,'Footnotes list'!$B$5:$C$103,2,FALSE)=0,"",VLOOKUP(AS10,'Footnotes list'!$B$5:$C$103,2,FALSE) ) ) -> 
D11: W150103 | F11: Wood | J11: =IF(TRIM(I11)="", "", IF(VLOOKUP(I11,'Footnotes list'!$B$5:$C$103,2,FALSE)=0,"",VLOOKUP(I11,'Footnotes list'!$B$5:$C$103,2,FALSE) ) ) ->  | N11: =IF(TRIM(M11)="", "", IF(VLOOKUP(M11,'Footnotes list'!$B$5:$C$103,2,FALSE)=0,"",VLOOKUP(M11,'Footnotes list'!$B$5:$C$103,2,FALSE) ) ) ->  | R11: =IF(TRIM(Q11)="", "", IF(VLOOKUP(Q11,'Footnotes list'!$B$5:$C$103,2,FALSE)=0,"",VLOOKUP(Q11,'Footnotes list'!$B$5:$C$103,2,FALSE) ) ) ->  | V11: =IF(TRIM(U11)="", "", IF(VLOOKUP(U11,'Footnotes list'!$B$5:$C$103,2,FALSE)=0,"",VLOOKUP(U11,'Footnotes list'!$B$5:$C$103,2,FALSE) ) ) ->  | Z11: =IF(TRIM(Y11)="", "", IF(VLOOKUP(Y11,'Footnotes list'!$B$5:$C$103,2,FALSE)=0,"",VLOOKUP(Y11,'Footnotes list'!$B$5:$C$103,2,FALSE) ) ) ->  | AD11: =IF(TRIM(AC11)="", "", IF(VLOOKUP(AC11,'Footnotes list'!$B$5:$C$103,2,FALSE)=0,"",VLOOKUP(AC11,'Footnotes list'!$B$5:$C$103,2,FALSE) ) ) ->  | AH11: =IF(TRIM(AG11)="", "", IF(VLOOKUP(AG11,'Footnotes list'!$B$5:$C$103,2,FALSE)=0,"",VLOOKUP(AG11,'Footnotes list'!$B$5:$C$103,2,FALSE) ) ) ->  | AL11: =IF(TRIM(AK11)="", "", IF(VLOOKUP(AK11,'Footnotes list'!$B$5:$C$103,2,FALSE)=0,"",VLOOKUP(AK11,'Footnotes list'!$B$5:$C$103,2,FALSE) ) ) ->  | AP11: =IF(TRIM(AO11)="", "", IF(VLOOKUP(AO11,'Footnotes list'!$B$5:$C$103,2,FALSE)=0,"",VLOOKUP(AO11,'Footnotes list'!$B$5:$C$103,2,FALSE) ) ) ->  | AT11: =IF(TRIM(AS11)="", "", IF(VLOOKUP(AS11,'Footnotes list'!$B$5:$C$103,2,FALSE)=0,"",VLOOKUP(AS11,'Footnotes list'!$B$5:$C$103,2,FALSE) ) ) -> 
D12: W15010402 | F12: Ferrous metal | J12: =IF(TRIM(I12)="", "", IF(VLOOKUP(I12,'Footnotes list'!$B$5:$C$103,2,FALSE)=0,"",VLOOKUP(I12,'Footnotes list'!$B$5:$C$103,2,FALSE) ) ) ->  | N12: =IF(TRIM(M12)="", "", IF(VLOOKUP(M12,'Footnotes list'!$B$5:$C$103,2,FALSE)=0,"",VLOOKUP(M12,'Footnotes list'!$B$5:$C$103,2,FALSE) ) ) ->  | R12: =IF(TRIM(Q12)="", "", IF(VLOOKUP(Q12,'Footnotes list'!$B$5:$C$103,2,FALSE)=0,"",VLOOKUP(Q12,'Footnotes list'!$B$5:$C$103,2,FALSE) ) ) ->  | V12: =IF(TRIM(U12)="", "", IF(VLOOKUP(U12,'Footnotes list'!$B$5:$C$103,2,FALSE)=0,"",VLOOKUP(U12,'Footnotes list'!$B$5:$C$103,2,FALSE) ) ) ->  | Z12: =IF(TRIM(Y12)="", "", IF(VLOOKUP(Y12,'Footnotes list'!$B$5:$C$103,2,FALSE)=0,"",VLOOKUP(Y12,'Footnotes list'!$B$5:$C$103,2,FALSE) ) ) ->  | AD12: =IF(TRIM(AC12)="", "", IF(VLOOKUP(AC12,'Footnotes list'!$B$5:$C$103,2,FALSE)=0,"",VLOOKUP(AC12,'Footnotes list'!$B$5:$C$103,2,FALSE) ) ) ->  | AH12: =IF(TRIM(AG12)="", "", IF(VLOOKUP(AG12,'Footnotes list'!$B$5:$C$103,2,FALSE)=0,"",VLOOKUP(AG12,'Footnotes list'!$B$5:$C$103,2,FALSE) ) ) ->  | AL12: =IF(TRIM(AK12)="", "", IF(VLOOKUP(AK12,'Footnotes list'!$B$5:$C$103,2,FALSE)=0,"",VLOOKUP(AK12,'Footnotes list'!$B$5:$C$103,2,FALSE) ) ) ->  | AP12: =IF(TRIM(AO12)="", "", IF(VLOOKUP(AO12,'Footnotes list'!$B$5:$C$103,2,FALSE)=0,"",VLOOKUP(AO12,'Footnotes list'!$B$5:$C$103,2,FALSE) ) ) ->  | AT12: =IF(TRIM(AS12)="", "", IF(VLOOKUP(AS12,'Footnotes list'!$B$5:$C$103,2,FALSE)=0,"",VLOOKUP(AS12,'Footnotes list'!$B$5:$C$103,2,FALSE) ) ) -> 
D13: W15010401 | F13: Aluminium | J13: =IF(TRIM(I13)="", "", IF(VLOOKUP(I13,'Footnotes list'!$B$5:$C$103,2,FALSE)=0,"",VLOOKUP(I13,'Footnotes list'!$B$5:$C$103,2,FALSE) ) ) ->  | N13: =IF(TRIM(M13)="", "", IF(VLOOKUP(M13,'Footnotes list'!$B$5:$C$103,2,FALSE)=0,"",VLOOKUP(M13,'Footnotes list'!$B$5:$C$103,2,FALSE) ) ) ->  | R13: =IF(TRIM(Q13)="", "", IF(VLOOKUP(Q13,'Footnotes list'!$B$5:$C$103,2,FALSE)=0,"",VLOOKUP(Q13,'Footnotes list'!$B$5:$C$103,2,FALSE) ) ) ->  | V13: =IF(TRIM(U13)="", "", IF(VLOOKUP(U13,'Footnotes list'!$B$5:$C$103,2,FALSE)=0,"",VLOOKUP(U13,'Footnotes list'!$B$5:$C$103,2,FALSE) ) ) ->  | Z13: =IF(TRIM(Y13)="", "", IF(VLOOKUP(Y13,'Footnotes list'!$B$5:$C$103,2,FALSE)=0,"",VLOOKUP(Y13,'Footnotes list'!$B$5:$C$103,2,FALSE) ) ) ->  | AD13: =IF(TRIM(AC13)="", "", IF(VLOOKUP(AC13,'Footnotes list'!$B$5:$C$103,2,FALSE)=0,"",VLOOKUP(AC13,'Footnotes list'!$B$5:$C$103,2,FALSE) ) ) ->  | AH13: =IF(TRIM(AG13)="", "", IF(VLOOKUP(AG13,'Footnotes list'!$B$5:$C$103,2,FALSE)=0,"",VLOOKUP(AG13,'Footnotes list'!$B$5:$C$103,2,FALSE) ) ) ->  | AL13: =IF(TRIM(AK13)="", "", IF(VLOOKUP(AK13,'Footnotes list'!$B$5:$C$103,2,FALSE)=0,"",VLOOKUP(AK13,'Footnotes list'!$B$5:$C$103,2,FALSE) ) ) ->  | AP13: =IF(TRIM(AO13)="", "", IF(VLOOKUP(AO13,'Footnotes list'!$B$5:$C$103,2,FALSE)=0,"",VLOOKUP(AO13,'Footnotes list'!$B$5:$C$103,2,FALSE) ) ) ->  | AT13: =IF(TRIM(AS13)="", "", IF(VLOOKUP(AS13,'Footnotes list'!$B$5:$C$103,2,FALSE)=0,"",VLOOKUP(AS13,'Footnotes list'!$B$5:$C$103,2,FALSE) ) ) -> 
D14: W150107 | F14: Glass | J14: =IF(TRIM(I14)="", "", IF(VLOOKUP(I14,'Footnotes list'!$B$5:$C$103,2,FALSE)=0,"",VLOOKUP(I14,'Footnotes list'!$B$5:$C$103,2,FALSE) ) ) ->  | N14: =IF(TRIM(M14)="", "", IF(VLOOKUP(M14,'Footnotes list'!$B$5:$C$103,2,FALSE)=0,"",VLOOKUP(M14,'Footnotes list'!$B$5:$C$103,2,FALSE) ) ) ->  | R14: =IF(TRIM(Q14)="", "", IF(VLOOKUP(Q14,'Footnotes list'!$B$5:$C$103,2,FALSE)=0,"",VLOOKUP(Q14,'Footnotes list'!$B$5:$C$103,2,FALSE) ) ) ->  | V14: =IF(TRIM(U14)="", "", IF(VLOOKUP(U14,'Footnotes list'!$B$5:$C$103,2,FALSE)=0,"",VLOOKUP(U14,'Footnotes list'!$B$5:$C$103,2,FALSE) ) ) ->  | Z14: =IF(TRIM(Y14)="", "", IF(VLOOKUP(Y14,'Footnotes list'!$B$5:$C$103,2,FALSE)=0,"",VLOOKUP(Y14,'Footnotes list'!$B$5:$C$103,2,FALSE) ) ) ->  | AD14: =IF(TRIM(AC14)="", "", IF(VLOOKUP(AC14,'Footnotes list'!$B$5:$C$103,2,FALSE)=0,"",VLOOKUP(AC14,'Footnotes list'!$B$5:$C$103,2,FALSE) ) ) ->  | AH14: =IF(TRIM(AG14)="", "", IF(VLOOKUP(AG14,'Footnotes list'!$B$5:$C$103,2,FALSE)=0,"",VLOOKUP(AG14,'Footnotes list'!$B$5:$C$103,2,FALSE) ) ) ->  | AL14: =IF(TRIM(AK14)="", "", IF(VLOOKUP(AK14,'Footnotes list'!$B$5:$C$103,2,FALSE)=0,"",VLOOKUP(AK14,'Footnotes list'!$B$5:$C$103,2,FALSE) ) ) ->  | AP14: =IF(TRIM(AO14)="", "", IF(VLOOKUP(AO14,'Footnotes list'!$B$5:$C$103,2,FALSE)=0,"",VLOOKUP(AO14,'Footnotes list'!$B$5:$C$103,2,FALSE) ) ) ->  | AT14: =IF(TRIM(AS14)="", "", IF(VLOOKUP(AS14,'Footnotes list'!$B$5:$C$103,2,FALSE)=0,"",VLOOKUP(AS14,'Footnotes list'!$B$5:$C$103,2,FALSE) ) ) -> 
D15: W150101 | F15: Paper and cardboard | J15: =IF(TRIM(I15)="", "", IF(VLOOKUP(I15,'Footnotes list'!$B$5:$C$103,2,FALSE)=0,"",VLOOKUP(I15,'Footnotes list'!$B$5:$C$103,2,FALSE) ) ) ->  | N15: =IF(TRIM(M15)="", "", IF(VLOOKUP(M15,'Footnotes list'!$B$5:$C$103,2,FALSE)=0,"",VLOOKUP(M15,'Footnotes list'!$B$5:$C$103,2,FALSE) ) ) ->  | R15: =IF(TRIM(Q15)="", "", IF(VLOOKUP(Q15,'Footnotes list'!$B$5:$C$103,2,FALSE)=0,"",VLOOKUP(Q15,'Footnotes list'!$B$5:$C$103,2,FALSE) ) ) ->  | V15: =IF(TRIM(U15)="", "", IF(VLOOKUP(U15,'Footnotes list'!$B$5:$C$103,2,FALSE)=0,"",VLOOKUP(U15,'Footnotes list'!$B$5:$C$103,2,FALSE) ) ) ->  | Z15: =IF(TRIM(Y15)="", "", IF(VLOOKUP(Y15,'Footnotes list'!$B$5:$C$103,2,FALSE)=0,"",VLOOKUP(Y15,'Footnotes list'!$B$5:$C$103,2,FALSE) ) ) ->  | AD15: =IF(TRIM(AC15)="", "", IF(VLOOKUP(AC15,'Footnotes list'!$B$5:$C$103,2,FALSE)=0,"",VLOOKUP(AC15,'Footnotes list'!$B$5:$C$103,2,FALSE) ) ) ->  | AH15: =IF(TRIM(AG15)="", "", IF(VLOOKUP(AG15,'Footnotes list'!$B$5:$C$103,2,FALSE)=0,"",VLOOKUP(AG15,'Footnotes list'!$B$5:$C$103,2,FALSE) ) ) ->  | AL15: =IF(TRIM(AK15)="", "", IF(VLOOKUP(AK15,'Footnotes list'!$B$5:$C$103,2,FALSE)=0,"",VLOOKUP(AK15,'Footnotes list'!$B$5:$C$103,2,FALSE) ) ) ->  | AP15: =IF(TRIM(AO15)="", "", IF(VLOOKUP(AO15,'Footnotes list'!$B$5:$C$103,2,FALSE)=0,"",VLOOKUP(AO15,'Footnotes list'!$B$5:$C$103,2,FALSE) ) ) ->  | AT15: =IF(TRIM(AS15)="", "", IF(VLOOKUP(AS15,'Footnotes list'!$B$5:$C$103,2,FALSE)=0,"",VLOOKUP(AS15,'Footnotes list'!$B$5:$C$103,2,FALSE) ) ) -> 
D16: W150199 | F16: Other | J16: =IF(TRIM(I16)="", "", IF(VLOOKUP(I16,'Footnotes list'!$B$5:$C$103,2,FALSE)=0,"",VLOOKUP(I16,'Footnotes list'!$B$5:$C$103,2,FALSE) ) ) ->  | N16: =IF(TRIM(M16)="", "", IF(VLOOKUP(M16,'Footnotes list'!$B$5:$C$103,2,FALSE)=0,"",VLOOKUP(M16,'Footnotes list'!$B$5:$C$103,2,FALSE) ) ) ->  | R16: =IF(TRIM(Q16)="", "", IF(VLOOKUP(Q16,'Footnotes list'!$B$5:$C$103,2,FALSE)=0,"",VLOOKUP(Q16,'Footnotes list'!$B$5:$C$103,2,FALSE) ) ) ->  | V16: =IF(TRIM(U16)="", "", IF(VLOOKUP(U16,'Footnotes list'!$B$5:$C$103,2,FALSE)=0,"",VLOOKUP(U16,'Footnotes list'!$B$5:$C$103,2,FALSE) ) ) ->  | Z16: =IF(TRIM(Y16)="", "", IF(VLOOKUP(Y16,'Footnotes list'!$B$5:$C$103,2,FALSE)=0,"",VLOOKUP(Y16,'Footnotes list'!$B$5:$C$103,2,FALSE) ) ) ->  | AD16: =IF(TRIM(AC16)="", "", IF(VLOOKUP(AC16,'Footnotes list'!$B$5:$C$103,2,FALSE)=0,"",VLOOKUP(AC16,'Footnotes list'!$B$5:$C$103,2,FALSE) ) ) ->  | AH16: =IF(TRIM(AG16)="", "", IF(VLOOKUP(AG16,'Footnotes list'!$B$5:$C$103,2,FALSE)=0,"",VLOOKUP(AG16,'Footnotes list'!$B$5:$C$103,2,FALSE) ) ) ->  | AL16: =IF(TRIM(AK16)="", "", IF(VLOOKUP(AK16,'Footnotes list'!$B$5:$C$103,2,FALSE)=0,"",VLOOKUP(AK16,'Footnotes list'!$B$5:$C$103,2,FALSE) ) ) ->  | AP16: =IF(TRIM(AO16)="", "", IF(VLOOKUP(AO16,'Footnotes list'!$B$5:$C$103,2,FALSE)=0,"",VLOOKUP(AO16,'Footnotes list'!$B$5:$C$103,2,FALSE) ) ) ->  | AT16: =IF(TRIM(AS16)="", "", IF(VLOOKUP(AS16,'Footnotes list'!$B$5:$C$103,2,FALSE)=0,"",VLOOKUP(AS16,'Footnotes list'!$B$5:$C$103,2,FALSE) ) ) -> 
D17: W1501 | F17: Total | G17: =IF(TRIM(CONCATENATE(G10,G11,G12,G13,G14,G15,G16))="","",SUM(G10,G11,G12,G13,G14,G15,G16)) ->  | J17: =IF(TRIM(I17)="", "", IF(VLOOKUP(I17,'Footnotes list'!$B$5:$C$103,2,FALSE)=0,"",VLOOKUP(I17,'Footnotes list'!$B$5:$C$103,2,FALSE) ) ) ->  | K17: =IF(TRIM(CONCATENATE(K10,K11,K12,K13,K14,K15,K16))="","",SUM(K10,K11,K12,K13,K14,K15,K16)) ->  | N17: =IF(TRIM(M17)="", "", IF(VLOOKUP(M17,'Footnotes list'!$B$5:$C$103,2,FALSE)=0,"",VLOOKUP(M17,'Footnotes list'!$B$5:$C$103,2,FALSE) ) ) ->  | O17: =IF(TRIM(CONCATENATE(O10,O11,O12,O13,O14,O15,O16))="","",SUM(O10,O11,O12,O13,O14,O15,O16)) ->  | R17: =IF(TRIM(Q17)="", "", IF(VLOOKUP(Q17,'Footnotes list'!$B$5:$C$103,2,FALSE)=0,"",VLOOKUP(Q17,'Footnotes list'!$B$5:$C$103,2,FALSE) ) ) ->  | S17: =IF(TRIM(CONCATENATE(S10,S11,S12,S13,S14,S15,S16))="","",SUM(S10,S11,S12,S13,S14,S15,S16)) ->  | V17: =IF(TRIM(U17)="", "", IF(VLOOKUP(U17,'Footnotes list'!$B$5:$C$103,2,FALSE)=0,"",VLOOKUP(U17,'Footnotes list'!$B$5:$C$103,2,FALSE) ) ) ->  | W17: =IF(TRIM(CONCATENATE(W10,W11,W12,W13,W14,W15,W16))="","",SUM(W10,W11,W12,W13,W14,W15,W16)) ->  | Z17: =IF(TRIM(Y17)="", "", IF(VLOOKUP(Y17,'Footnotes list'!$B$5:$C$103,2,FALSE)=0,"",VLOOKUP(Y17,'Footnotes list'!$B$5:$C$103,2,FALSE) ) ) ->  | AA17: =IF(TRIM(CONCATENATE(AA10,AA11,AA12,AA13,AA14,AA15,AA16))="","",SUM(AA10,AA11,AA12,AA13,AA14,AA15,AA16)) ->  | AD17: =IF(TRIM(AC17)="", "", IF(VLOOKUP(AC17,'Footnotes list'!$B$5:$C$103,2,FALSE)=0,"",VLOOKUP(AC17,'Footnotes list'!$B$5:$C$103,2,FALSE) ) ) ->  | AE17: =IF(TRIM(CONCATENATE(AE10,AE11,AE12,AE13,AE14,AE15,AE16))="","",SUM(AE10,AE11,AE12,AE13,AE14,AE15,AE16)) ->  | AH17: =IF(TRIM(AG17)="", "", IF(VLOOKUP(AG17,'Footnotes list'!$B$5:$C$103,2,FALSE)=0,"",VLOOKUP(AG17,'Footnotes list'!$B$5:$C$103,2,FALSE) ) ) ->  | AI17: =IF(TRIM(CONCATENATE(AI10,AI11,AI12,AI13,AI14,AI15,AI16))="","",SUM(AI10,AI11,AI12,AI13,AI14,AI15,AI16)) ->  | AL17: =IF(TRIM(AK17)="", "", IF(VLOOKUP(AK17,'Footnotes list'!$B$5:$C$103,2,FALSE)=0,"",VLOOKUP(AK17,'Footnotes list'!$B$5:$C$103,2,FALSE) ) ) ->  | AM17: =IF(TRIM(CONCATENATE(AM10,AM11,AM12,AM13,AM14,AM15,AM16))="","",SUM(AM10,AM11,AM12,AM13,AM14,AM15,AM16)) ->  | AP17: =IF(TRIM(AO17)="", "", IF(VLOOKUP(AO17,'Footnotes list'!$B$5:$C$103,2,FALSE)=0,"",VLOOKUP(AO17,'Footnotes list'!$B$5:$C$103,2,FALSE) ) ) ->  | AQ17: =IF(TRIM(CONCATENATE(AQ10,AQ11,AQ12,AQ13,AQ14,AQ15,AQ16))="","",SUM(AQ10,AQ11,AQ12,AQ13,AQ14,AQ15,AQ16)) ->  | AT17: =IF(TRIM(AS17)="", "", IF(VLOOKUP(AS17,'Footnotes list'!$B$5:$C$103,2,FALSE)=0,"",VLOOKUP(AS17,'Footnotes list'!$B$5:$C$103,2,FALSE) ) ) -> 
F19: Notes:
F20: Cell shading:
F21: White: Data provision is mandatory from 2022 (reference year 2020)
F22: Light grey: The calculation of data is automatic. Can be edited after unlocking the cell with the button "Unlock formulas".
F23: Light blue: provision of data is voluntary.
F24: Light orange: Footnotes (only to be filled-in when relevant)
F26: (1) Commission Decision 2005/270/EC establishing the formats relating to Directive 94/62/EC on packaging and packaging waste as last amended by Commission Implementing Decision 2019/665
F27: (2) This means all reusable and single-use packaging comprising sales, transport and grouped packaging
F28: (3) This means reusable and single-use sales packaging.
F29: (4) This means the number of rotations that reusable packaging completes in a given year.
F30: (5) This means the number of rotations that reusable packaging completes in a given year multiplied by their mass.

Sheet ErrorLog
A1: Link to Error | B1: Validation Rule | C1: Cell | D1: Sheet | E1: Description | F1: Severity | G1: Former Color

Sheet Lists (hidden)
A1: Country label | B1: Country code | D1: Valid flags | E1: Label
A2: Belgium | B2: BE | D2: B | E2: break in time series
A3: Bulgaria | B3: BG | D3: E | E3: estimated data
A4: Czechia | B4: CZ | D4: P | E4: provisional
A5: Denmark | B5: DK | D5: BE
A6: Germany | B6: DE | D6: BP
A7: Estonia | B7: EE | D7: EP
A8: Ireland | B8: IE | D8: BEP
A9: Greece | B9: EL
A10: Spain | B10: ES
A11: France | B11: FR
A12: Croatia | B12: HR
A13: Italy | B13: IT
A14: Cyprus | B14: CY
A15: Latvia | B15: LV
A16: Lithuania | B16: LT
A17: Luxembourg | B17: LU
A18: Hungary | B18: HU
A19: Malta | B19: MT
A20: Netherlands | B20: NL
A21: Austria | B21: AT
A22: Poland | B22: PL
A23: Portugal | B23: PT
A24: Romania | B24: RO
A25: Slovenia | B25: SI
A26: Slovakia | B26: SK
A27: Finland | B27: FI
A28: Sweden | B28: SE
A29: United Kingdom | B29: UK
A30: Iceland | B30: IS
A31: Liechtenstein | B31: LI
A32: Norway | B32: NO
A33: Switzerland | B33: CH
A34: Montenegro | B34: ME
A35: North Macedonia | B35: MK
A36: Albania | B36: AL
A37: Serbia | B37: RS
A38: Turkey | B38: TR
A39: Bosnia and Herzegovina | B39: BA
A40: Kosovo (UNSCR 1244) | B40: XK
A42: ESTAT-E2-WASTE-2020 | B42: CDD

Sheet Locks (hidden)
A1: Sheet Name | B1: Top Left Cell | C1: Bottom Right Cell | D1: Row Step | E1: Column Step | F1: Lock Type | G1: Focus Back To | H1: Content is Mandatory
A2: Table_1 | B2: G18 | C2: AI18 | D2: 999 | E2: 4 | F2: Formulas | G2: G8 | H2: YES
A3: Table_1 | B3: G10 | C3: AI10 | D3: 999 | E3: 4 | F3: Formulas | G3: G8 | H3: YES
A4: Table_1a | B4: G16 | C4: K16 | D4: 999 | E4: 4 | F4: Formulas | G4: G8 | H4: YES
A5: Table_3 | B5: G17 | C5: AQ17 | D5: 999 | E5: 4 | F5: Formulas | G5: G10 | H5: YES

Sheet CountryName (hidden)
A1: Severity | B1: SheetName | C1: TopLeftCell | D1: BottomRightCell | E1: RowStep | F1: ColumnStep
A2: Error | B2: Basic instructions | C2: G11 | D2: G11 | E2: 1 | F2: 1
A6: DESCRIPTION
A7: Spot the position where the reporting country is defined
A9: PARAMETERS
A10: =B1 -> SheetName | B10: Name of the sheet to be validated (e.g. Table 1)
A11: =C1 -> TopLeftCell | B11: Cell where the country name must be selected
A12: =D1 -> BottomRightCell | B12: Same as TopLeftCell (*)
A13: =E1 -> RowStep | B13: Must be "1" (*)
A14: =F1 -> ColumnStep | B14: Must be "1" (*)
A16: (*) These parameters, apparently useless, are kept to make this validation compatible with other standard validation structures

Sheet Summations (hidden)
A1: Severity | B1: Sheet Name | C1: List of Cells (first block) | D1: First Total Cell (first block) | E1: Last Total Cell (Last block) | F1: Row Block Repetition Step | G1: Column Block Repetition Step | H1: Greater or Equal | I1: Valid Tolerance | J1: Only if all data is available | K1: Display text in error
A2: Error | B2: Table_1 | C2: G8,G9,G10,G15,G16,G17 | D2: G18 | E2: AI18 | F2: 999 | G2: 4 | H2: EQ | I2: 0.1 | J2: YES | K2: Total waste not consistent to the sum of materials
A3: Error | B3: Table_1 | C3: K8,O8,S8 | D3: W8 | E3: W18 | F3: 1 | G3: 999 | H3: GE | I3: 0.1 | J3: NO | K3: Total Recycling must be greater than the sum of its components
A4: Error | B4: Table_1 | C4: K8,O8,S8 | D4: W8 | E4: W18 | F4: 1 | G4: 999 | H4: EQ | I4: 0.1 | J4: YES | K4: Total Recycling must be equal than the sum of its components
A5: Error | B5: Table_1 | C5: G11,G12 | D5: G10 | E5: AI10 | F5: 999 | G5: 4 | H5: EQ | I5: 0.1 | J5: YES | K5: Total metals not consistent to the sum of Al + Fe
A6: Error | B6: Table_1 | C6: K8,O8,S8,AA8,AE8,AI8 | D6: G8 | E6: G18 | F6: 1 | G6: 999 | H6: GT | I6: 0 | J6: NO | K6: Generation must be bigger than the sum of all other columns
A7: Error | B7: Table_1 | C7: W8,AA8,AE8,AI8 | D7: G8 | E7: G18 | F7: 1 | G7: 999 | H7: GT | I7: 0 | J7: NO | K7: Generation must be bigger than the sum of all other columns
A8: Error | B8: Table_1 | C8: K8,O8,S8,AA8,AE8,AI8 | D8: G8 | E8: G12 | F8: 1 | G8: 999 | H8: GT | I8: 0 | J8: NO | K8: Generation must be bigger than the sum of all other columns
A9: Error | B9: Table_1 | C9: W15,AA15,AE15,AI15 | D9: G15 | E9: G18 | F9: 1 | G9: 999 | H9: GT | I9: 0 | J9: NO | K9: Generation must be bigger than the sum of all other columns
A10: Error | B10: Table_1a | C10: G8,G9,G10,G13,G14,G15 | D10: G16 | E10: K16 | F10: 999 | G10: 4 | H10: EQ | I10: 0.1 | J10: YES | K10: Total waste not consistent to the sum of materials
A11: Error | B11: Table_1a | C11: G11,G12 | D11: G13 | E11: K13 | F11: 999 | G11: 4 | H11: GE | I11: 0.1 | J11: NO | K11: Total metals not consistent to the sum of Al + Fe
A12: Error | B12: Table_1a | C12: K8 | D12: G8 | E12: G16 | F12: 1 | G12: 999 | H12: GT | I12: 0 | J12: YES | K12: Generation must be biger than recycling
A13: Error | B13: Table_3 | C13: G10,G11,G12,G13,G14,G15,G16 | D13: G17 | E13: AQ17 | F13: 999 | G13: 4 | H13: EQ | I13: 0.1 | J13: YES | K13: Total waste not consistent to the sum of materials
A14: Error | B14: Table_3 | C14: O10 | D14: G10 | E14: K17 | F14: 1 | G14: 4 | H14: GT | I14: 0 | J14: YES | K14: Sales packaging must be smaller than all packaging
A15: Error | B15: Table_3 | C15: AA10 | D15: W10 | E15: W17 | F15: 1 | G15: 999 | H15: GT | I15: 0 | J15: YES | K15: Reusable sales packaging must be smaller than all sales packaging
F17: Must be > 0 for a not relevant dimension. Else you get an infinite loop | H17: EQ or GE or GT | I17: GT does not admit Tolerance | J17: NO or YES
A19: DESCRIPTION
A20: This sheet is meant to define the validation for summations in a row or in a column.
A21: - A block is defined as a sequence of addendums in the same row or column
A22: - Only the first block must be explicitly defined
A23: - The block can be repeated at regular patterns through rows and columns at the same time
A26: PARAMETRES
A27: SheetName | C27: Name of the sheet to be validated (e.g. Table 1)
A28: List of Cells (first block) | C28: First cell in the first block to be validated
A29: First TotalCell (first block)
A30: Last TotalCell (Last block)
A31: Row Block Repetition Step
A32: Column Block Repetition Step
A33: Greater or Equal
A34: Valid Threshold
A35: Only if all data is available
A36: Display text in error | C36: Valid values: EQ (Strictly equal); GE (Greater or Equal); GT (Strictly greater - No threshold will be considered)
D115: =SUM(Summations!B3º) -> 

Sheet Mandatory (hidden)
A1: Severity | B1: SheetName | C1: Top Left Cell | D1: Bottom Right Cell | E1: Row Step | F1: Column Step | G1: Empty Is Valid If Footnote Exists | H1: Footnote Shift From Value
A2: Error | B2: Basic instructions | C2: D16 | D2: D24 | E2: 2 | F2: 999 | G2: NO | H2: 3
A3: Error | B3: Table_1 | C3: G8 | D3: W10 | E3: 1 | F3: 4 | G3: YES | H3: 3
A4: Error | B4: Table_1 | C4: G15 | D4: W18 | E4: 1 | F4: 4 | G4: YES | H4: 3
A5: Error | B5: Table_1 | C5: AE8 | D5: AI10 | E5: 1 | F5: 4 | G5: YES | H5: 3
A6: Error | B6: Table_1 | C6: AI15 | D6: AI15 | E6: 1 | F6: 4 | G6: YES | H6: 3
A7: Error | B7: Table_1 | C7: AE16 | D7: AI16 | E7: 1 | F7: 4 | G7: YES | H7: 3
A11: Error | B11: Table_2 | C11: K10 | D11: K12 | E11: 1 | F11: 4 | G11: YES | H11: 3
A12: Error | B12: Table_2 | C12: O8 | D12: S12 | E12: 1 | F12: 4 | G12: YES | H12: 3
A13: Error | B13: Table_3 | C13: G8 | D13: G11 | E13: 1 | F13: 4 | G13: YES | H13: 3
A14: Error | B14: Table_4 | C14: P8 | D14: P9 | E14: 1 | F14: 4 | G14: YES | H14: 3
A15: Error | B15: Table_4 | C15: P15 | D15: P16 | E15: 1 | F15: 4 | G15: NO | H15: 3
A16: Error | B16: Table_4 | C16: P10 | D16: P14 | E16: 1 | F16: 4 | G16: YES | H16: 3

Sheet MustNotBeNegative (hidden)
A1: Severity | B1: SheetName | C1: TopLeftCell | D1: BottomRightCell | E1: RowStep | F1: ColumnStep
A2: Error | B2: Table_1 | C2: G8 | D2: AI18 | E2: 1 | F2: 4
A3: Error | B3: Table_1a | C3: G8 | D3: K16 | E3: 1 | F3: 4
A4: Error | B4: Table_2 | C4: G8 | D4: J14 | E4: 1 | F4: 4
A5: Error | B5: Table_3 | C5: G10 | D5: AQ17 | E5: 1 | F5: 4

Sheet Thresholds (hidden)
A1: Severity | B1: SheetName | C1: Top Left Cell | D1: Bottom Right Cell | E1: Row Step | F1: Column Step | G1: Lower value | H1: Upper value | I1: Error Is Valid If Footnote Exists | J1: Footnote Shift From Value
A2: Error | B2: Table_2 | C2: G8 | D2: J14 | E2: 1 | F2: 1 | G2: 0 | H2: 100 | I2: NO | J2: 999

Sheet IsFormula (hidden)
A1: Severity | B1: Sheet Name | C1: Top Left Cell | D1: Bottom Right Cell | E1: Row Step | F1: Column Step
A2: Info | B2: Table_1 | C2: G18 | D2: AI18 | E2: 999 | F2: 4
A3: Info | B3: Table_1 | C3: G10 | D3: W10 | E3: 999 | F3: 4
A4: Info | B4: Table_1 | C4: AE10 | D4: AI10 | E4: 999 | F4: 4
A5: Info | B5: Table_1a | C5: G16 | D5: K16 | E5: 999 | F5: 4
A6: Info | B6: Table_3 | C6: G17 | D6: AQ17 | E6: 999 | F6: 4

Sheet FootnoteContent (hidden)
A1: Severity | B1: SheetName | C1: TopLeftCell | D1: BottomRightCell | E1: RowStep | F1: ColumnStep | G1: DistanceFromReferenceToText
A2: Error | B2: Table_1 | C2: I8 | D2: AK18 | E2: 1 | F2: 4 | G2: 1
A3: Error | B3: Table_1a | C3: I8 | D3: M16 | E3: 1 | F3: 4 | G3: 1
A4: Error | B4: Table_3 | C4: I10 | D4: AS17 | E4: 1 | F4: 4 | G4: 1

Sheet IsNumeric (hidden)
A1: Severity | B1: SheetName | C1: TopLeftCell | D1: BottomRightCell | E1: RowStep | F1: ColumnStep
A2: Error | B2: Table_1 | C2: G8 | D2: AI18 | E2: 1 | F2: 4 | I2: it is meant to check that there are numerical values
A3: Error | B3: Table_1a | C3: G8 | D3: K16 | E3: 1 | F3: 4
A4: Error | B4: Table_2 | C4: G8 | D4: J14 | E4: 1 | F4: 1
A5: Error | B5: Table_3 | C5: G10 | D5: AQ17 | E5: 1 | F5: 4

Sheet Validation rules (hidden)
B1: This sheet shows checks that Eurostat plans to implement in an automatic way - to be completed
A2: Preliminary checks:
B4: The reporting country name and Reference year must be filled in the sheet "Basic Instructions".
B5: Primary contact point should be filled.
A7: Mandatory Data:
B9: All the mandatory cells in table 1 must be filled-in when the reference year is 2020 or later. Before this date, the breakdown of metals (ferrous metal and aluminium) and the breakdown of recycling were not compulsory according the old rules)
B10: All the mandatory cells in table 3 must be filled-in when the reference year is 2020 or later.
A12: Arithmetic rules
B14: All reported values must be equal or bigger than 0 (positive values)
B16: TABLE_1: The 'Metal (total)' row should be equal to the sum of the 'Ferrous metal' and 'Aluminium' rows (when the reference year is 2020 or later). Before, only if reported all of them.
B18: TABLE_1:The 'Total' row should be a sum of all the amounts given in the separate material within the table (Excluding the individual metals which are accounted in Metals (total) | D18: TABLE_1:The 'Total' row should be a sum of all the amounts given in the separate rows within the table (except only one of either the 'Metal (total)' or 'Ferrous metal' and 'Aluminium' rows should be included, to ensure there is no double counting).
B20: TABLE_1: The "Waste generation" column must be bigger than the amounts given in all other columns within the table
B21: TABLE_1a: The 'Metal (total)' row should be equal to the sum of the Steel' and 'Aluminium' rows (when reported all of these values since according to the old rules provision of separate data for aluminium and steel packaging would be voluntary).
B23: TABLE_1a:The 'Total' row should be a sum of all the amounts given in the separate rows within the table except 'Steel' and 'Aluminium' rows to ensure there is no double counting.
B25: TABLE_1a: The "Packaging Waste Generated " column must be bigger than the "Packaging Waste Recycled" column.
B27: TABLE_2: All reported figures must be between 0 and 100.
B29: TABLE_3:The 'Total' row should be a sum of all the amounts given in the separate rows within the table.
B31: TABLE_3:The columns concerning 'Sales packaging"' must be smaller than the respective "all packaging" columns (having the same unit)
B33: TABLE_3:"Reusable packaging placed on the market for the first time" must be smaller than "Packaging placed on the market for the first time"
A35: Formula:
B36: Table_1, Table_1a, Table_3. Include formula in total waste. Create macro to unblock the cell.
B37: Table_1. Include formula in total recycling. This column should be hidden. Create macro to unblock the cell.

Sheet Quality_report >>>
D1: Packaging and Packaging Waste QUALITY REPORT
A4: Quality report | G4: Sheet(s)
A5: 1. General information | G5: Overview & Waste Gen.
A6: 2. Description of the parties involved in the data collection | G6: Overview & Waste Gen.
A7: 3. Description of methods used | G7: Overview & Waste Gen. | H7: Waste Management | I7: Data Accuracy | J7: Reusable & Traceability
A8: 4. Traceability of waste and ensuring conditions are broadly equivalent of the requirements of EU law | G8: Reusable & Traceability
A9: 5. Confidentiality | G9: Confidentiality & References
A10: 6. Main national websites, reference documents and publications | G10: Confidentiality & References
A13: The structure of the quality report follows the structure set out in Commission Decision 2005/270 in most cases. Where there are some differences the intention of the Act is maintained. However, changes have been introduced to ensure the responses are more accurate and easier to fill in by the Member States. Please aim to complete the QR as it is structured, if it is not possible to provide the relevant information explain the reasons why. Do not leave responses blank.

Sheet Overview & Waste Gen.
D1: Packaging and Packaging Waste QUALITY REPORT
A4: 1. General information
A5: 1.1. Member State | F5: Luxembourg
A6: 1.2. Organisation submitting the data and the description | F6: Administration de l’environnement
A7: 1.3. Contact name | F7: Tim Mirgain
A8: 1.4. Contact email address | F8: tim.mirgain@aev.etat.lu
A9: 1.5. Contact phone number | F9: (+352) 40 56 56 - 322
A10: 1.6. Reference year | F10: 2018
A11: 1.7. Delivery date / version | F11: 2020-06-30
A12: 1.8. Link to data publication by the Member State (if any) | F12: http://www.statistiques.public.lu/stat/ReportFolders/ReportFolder.aspx?IF_Language=fra&MainTheme=1&FldrName=3&RFPath=65
A14: 2. Description of the parties involved in the data collection
A15: The various institutions involved in the data collection processes should be listed in this table, one per line (add more if necessary), and a description of their key responsibilities given. The parties should include the main public institution returning the quality check report to Eurostat, any other public institutions involved in the process, any extended producer responsibility schemes providing data, any private companies supporting in the data gathering and/or validation processes, and any other entity of relevance.
A16: Name of institution | E16: Description of key responsibilities | F16: Description of key responsibilities
A17: Administration de l’environnement | F17: Collecting, processing and analysing of data
A19: Add rows as appropriate.
A21: 3. Description of methods used
A22: 3.1. Packaging waste generation
A23: 3.1.1. Methods for determining packaging waste generation (mark with a cross)
A24: Which basic approach do you use to calculate waste generated?
A25: Please, indicate the approximate share of each approach in % of the total packaging waste generated.
A26: Approach | K26: % of waste generated based on this approach
A27: Approach 1 Put on the Market (POM) based on EPR data, complemented with estimates to ensure full coverage of the EPR data | K27: 0
A28: Approach 2 POM based on sources other than EPR (e.g. based on production and import statistics and factors to estimate the amount of packaging associated to these product flows) | K28: 0
A29: Approach 3 Waste analysis | K29: 1
A30: Other approaches (please specify here):
A32: Approach 1 - Put on the Market (POM) based on EPR
A33: Primary sources and their shares in the total.
A34: Sources for calculation of PoM | D34: % of packaging total covered | L34: Threshold of this source(*)
D35: Total | E35: Plastic | F35: Wood | G35: Ferrous metals | H35: Aluminium | I35: Glass | J35: Paper and Cardboard | K35: Other
A36: EPR scheme data | D36: NA | E36: NA | F36: NA | G36: NA | H36: NA | I36: NA | J36: NA | K36: NA | L36: NA
A37: Administrative reporting different from EPR | D37: NA | E37: NA | F37: NA | G37: NA | H37: NA | I37: NA | J37: NA | K37: NA | L37: NA
A38: Surveys | D38: NA | E38: NA | F38: NA | G38: NA | H38: NA | I38: NA | J38: NA | K38: NA | L38: NA
A39: Electronic registry (please specify here): | D39: NA | E39: NA | F39: NA | G39: NA | H39: NA | I39: NA | J39: NA | K39: NA | L39: NA
A40: Other (please specify here): | D40: NA | E40: NA | F40: NA | G40: NA | H40: NA | I40: NA | J40: NA | K40: NA | L40: NA
A41: (*) Is there a certain minimum amount of waste, turnover etc. which is necessary to be registered?
A43: Approach 2 - Put on the market (POM) calculated from production and foreign trade statistics and using coefficients of packaging for the sold goods in question
A44: Primary sources and their shares in the total.
A45: Sources for calculation of PoM | D45: % of packaging total covered | L45: Threshold of this source(*)
D46: Total | E46: Plastic | F46: Wood | G46: Ferrous metals | H46: Aluminium | I46: Glass | J46: Paper and Cardboard | K46: Other
A47: Production statistics | D47: NA | E47: NA | F47: NA | G47: NA | H47: NA | I47: NA | J47: NA | K47: NA | L47: NA
A48: Foreign trade statistics | D48: NA | E48: NA | F48: NA | G48: NA | H48: NA | I48: NA | J48: NA | K48: NA | L48: NA
A49: Specific surveys (please specify here): | D49: NA | E49: NA | F49: NA | G49: NA | H49: NA | I49: NA | J49: NA | K49: NA | L49: NA
A50: Electronic registry (please specify here): | D50: NA | E50: NA | F50: NA | G50: NA | H50: NA | I50: NA | J50: NA | K50: NA | L50: NA
A51: Other (please specify here): | D51: NA | E51: NA | F51: NA | G51: NA | H51: NA | I51: NA | J51: NA | K51: NA | L51: NA
A52: (*) Is there a certain minimum amount of waste, turnover etc. which is necessary to be registered?
A54: Approach 3 - Waste analysis
A55: Packaging waste generated estimated by waste analysis The first column in the table below just describes the structure of the question, please add respective categories, if different in your country (for example: Household-kerbside waste may be split into 3 waste streams: residual waste, mixed dry recyclables and organic waste).
A57: Type of waste | D57: Number of samples taken | F57: Total volume or weight of samples taken | H57: What proportion does the sample represent of the total waste generated (in %) | J57: Frequency of sample
F58: Volume in cubic metres | G58: Weight in tonnes
A59: Mixed household and similar waste | D59: 32 | G59: 23.93 | H59: 0.00021 | J59: 5years
A60: Separately collected municipal waste | D60: NO | F60: NO | G60: NO | H60: NO | I60: NO | J60: NO | K60: NO
A61: Separately collected business waste | D61: NO | F61: NO | G61: NO | H61: NO | I61: NO | J61: NO | K61: NO
A62: Others (please specify, add rows as needed): | D62: 24 | F62: 584 | H62: 0.045 | J62: 5 years
A64: The waste samples for waste analysis are taken…
A65: Approach | E65: Please cross / provide details about the flows of waste covered
A66: Directly from the bin
A67: From the waste trucks | E67: x
A68: Other approaches (please specify here):
A70: Impurities and humidity. Please fill in accordingly…
A71: Factors | E71: Total | F71: Plastic | G71: Wood | H71: Ferrous metals | I71: Aluminium | J71: Glass | K71: Paper and Cardboard | L71: Other
A72: Correction factors for impurities and humidity in % of waste | F72: 0.35 | G72: 0.11 | H72: 0.05 | I72: NE | J72: 0.01 | K72: 0.3 | L72: NE
A75: How did you derive the correction factors? | E75: Broad estimates
A76: If you do not apply any correction of impurities and humidity, how do you account for them? | E76: NA
A78: For the estimation we also use waste flow data from…
A79: Source | E79: Please indicate sources… | H79: Please indicate materials covered
A80: Waste collectors | E80: x | H80: all
A81: Waste treatment operators | E81: x | H81: all
A82: Municipalities
A83: Others (please specify here):
A85: 3.1.2. Explanation of the application of estimates in case data on packaging placed on the market is used (for instance, where data collection does not cover the whole market or in order to take account of free riders, private shipments in or out of the country or on-line sales)
A86: Where data on packaging placed on the market is used and any estimates are made to fill gaps, each should be explained in detail, including sources of information, assumptions made, when the estimates were made etc.
A87: NA
A88: 3.1.3. Indication whether an estimate has been calculated and added (Yes/No) and if ‘Yes’ the added volume in % of the total
A89: All cells in the table should be filled in either with a ‘No’, or a ‘Yes’ alongside the % of the total figure included. For example: No, or Yes 5%.
A90: Packaging waste material | D90: Total | E90: Plastic | F90: Wood | G90: Ferrous metals | H90: Aluminium | I90: Glass | J90: Paper and Cardboard | K90: Other
A91: Validation
A92: Corrections for underreporting of units covered by the above sources | D92: No | E92: No | F92: No | G92: No | H92: No | I92: No | J92: No | K92: No
A93: Estimates for units below the threshold (de minimis) | D93: No | E93: No | F93: No | G93: No | H93: No | I93: No | J93: No | K93: No
A94: Estimates for other units legally exempt from reporting | D94: No | E94: No | F94: No | G94: No | H94: No | I94: No | J94: No | K94: No
A95: Estimates for freeriders | D95: No | E95: No | F95: No | G95: No | H95: No | I95: No | J95: No | K95: No
A96: Private imports /exports by private parcels | D96: No | E96: No | F96: No | G96: No | H96: No | I96: No | J96: No | K96: No
A97: Private imports /exports (from journeys) | D97: No | E97: No | F97: No | G97: No | H97: No | I97: No | J97: No | K97: No
A98: Internet imports and exports i.e. on-line sales | D98: No | E98: No | F98: No | G98: No | H98: No | I98: No | J98: No | K98: No
A99: Other corrections (please specify here): | D99: No | E99: No | F99: No | G99: No | H99: No | I99: No | J99: No | K99: No
A101: 3.1.4. Description of the methodology and verification of data on packaging waste generated in case waste analysis is used. This should include an explanation of how: (a) non-packaging waste collected together with packaging waste as well as (b) packaging materials in other waste (mixed waste streams) are accounted for.
A102: Where waste generation data is used, it is important to understand how the packaging element has been identified as packaging, if regularly collected with non-packaging materials. In addition, estimates of the amounts of packaging waste in mixed waste would be required, so a detailed explanation of the approach to determining those amounts should be provided.
A103: (a) The distinction of non-packaging waste collected together with packaging waste was mainly done on the EWC used by waste handlers and waste collectors. For certain fractions like mixed packaging waste (15 01 06) or paper and cardboard waste (20 01 01) waste analysis were carried out. For all remaining fractions estimates were being used (b) The packaging materials in mixed waste streams from households is based on the results of the waste analysis. The packaging waste contained in non-household waste is based on an estimate provided by waste handlers of their outgoing residual or combustion waste.
A104: 3.1.5. Description of the methodology to report on composite packaging, including where materials contained in composite packaging and representing less than 5 % of the mass of the packaging unit are not reported separately.
A105: Explain how composite packaging is included in the data. For example: (a) which key types of packaging where any component is >5% are dealt with and which material categories this applies to, as well as (b) which key material is used to report on any key types of packaging where composite elements are <5%.
A106: Drink cartons are reported under paperboard as it is assumed that 95% of its weight is made of cardboard. In previous years LU reported composite packaging , contained within residual waste, under “other packaging”. Unfortunately, the waste analysis only makes the distinction between drink cartons and composite packaging (for which the composition is unknown). For the reporting of 2018, LU has taken the assumption that composite packaging (in residual waste) contains 50% paperboard and 50% of plastic. With the implementation of the new calculation rules LU will thrive to improve data on this point. For the EWC fraction 150110 the distinction between plastic and metal packaging was done according to the treatment code (R03 for plastic and R04 for metal).
A107: 3.1.6. Verification of data on packaging waste generated
A108: The columns in the table relate to information on verification procedures used within the national statistical reporting system to validate the accuracy of the data. In all of the following columns, for all materials, include a ‘yes’ or ‘no’ in the table cell to indicate whether they are used or not: • Cross-check (yes/no) • Time-series check (yes/no) • Audit (yes/no) If ‘yes’ is identified for any of these aspects, for any of the materials, in the final column ‘Verification process’, please describe the details of the process.
B110: Packaging waste material | D110: Cross-check (yes/no) | F110: Time-series check (yes/no) | H110: Audit (yes/no) | J110: Verification process
B111: Plastic | D111: YES | F111: YES | H111: NO | J111: comparison with EPR
B112: Wood | D112: NO | F112: YES | H112: NO
B113: Ferrous metals | D113: NO | F113: YES | H113: NO
B114: Aluminium | D114: NO | F114: YES | H114: NO
B115: Glass | D115: NO | F115: YES | H115: NO
B116: Paper and cardboard | D116: NO | F116: YES | H116: NO
B117: Others

Sheet Waste Management
D1: Packaging and Packaging Waste QUALITY REPORT
A4: 3.2. Packaging waste management
A5: 3.2.1. Classifications of treatment operations Information on the classification used for treatment operations (if a standard classification is used such as the disposal operation or recovery operation codes established in Annexes I and II of Directive 2008/98/EC, refer to its name or specify and describe all the relevant categories used).
A6: State clearly whether the R/D codes in Annexes I and II of Directive 2008/98/EC are solely used, or whether additional national based classifications are used to complement or are used instead of R/D codes. Where there is any variation from the codes set out in the annexes, the full list of national codes must be described. The correlation of any national codes and the codes in the annexes must be made explicit in the response.
A7: Solely the R/D codes in Annexes I and II of Directive 2008/98/EC are used
A8: 3.2.2. Description of methods for determining packaging waste treatment (mark with a cross)
A9: Place a cross in the relevant box to identify which method you use for each material. If you use the same method for all materials put the cross in the ‘Total’ row. If you use another method please describe this in the ‘Other’ column.
A11: Packaging waste material | D11: Total | E11: Plastic | F11: Wood | G11: Ferrous metals | H11: Aluminium | I11: Glass | J11: Paper and Cardboard | K11: Other
A12: Data collection methods
A13: Administrative reporting | D13: x
A14: Surveys
A15: Electronic registry
A16: Waste analysis | D16: x
A17: Data from waste operators | D17: x
A18: Data from municipalities
A19: Data from extended producer responsibility schemes
A20: Other (specify)
A21: Additional information about the methodology, including the combination of methods used.
A22: Provide a description of the different methodologies used, particularly where these vary for the different components of packaging waste. If relevant include documents or links to documents where the methodologies are described in more detail. Ensure any links to documents are accessible for Eurostat’s validation team. Documents should be in English. Where a combination of methods is used, provide an explanation of what the different methods are used for and the different types of treatment they cover. Where surveys and electronic registries or administrative data are indicated for the same component of packaging waste, explain how the data from each method is used in combination to calculate the total amount of waste treated.
A23: Waste flows are entirely based on the data submitted in annual reports of of waste handlers in Luxembourg. Packaging waste within those waste flows are based on EWC codes and waste analysis.
A25: 3.2.3. Measurement points for recycling applied by the Member State
A26: For each component of packaging waste a description of the measurement points that have been used should be provided. If necessary, these descriptions could be attached in a separate document if further detail is required for the explanation. These documents should be in English. Diagrams that help explain the location of the measurement points within the recycling value chain should be provided. Where calculation points other than those indicated in Annex II are used, these must be clearly described, along with the associated measurement points. Where there are multiple measurements points for different types of recycling for a given component of packaging waste, these should be clearly described for each type. For ‘Metals from IBA’ the measurement points can be described briefly, or, if also included in section 3.2.11 below, then just refer to that section for the description of the measurement points.
A27: For the purposes of voluntary reporting using the new rules in June 2020, if data at the new calculation points cannot be obtained, or estimated, please state exactly at which points in the recycling chain the data relate to for each material (and ideally for plastics by polymer). In addition, please outline the nature of the waste collection systems used to capture the material for recycling. This information will be assessed and a review with the Member State regarding a suitable average loss rate(s) will be undertaken, in order to correct the data such that it reflects the amounts that should be reported at the calculation point (to ensure the recycled amounts are not overestimated).
B29: Packaging waste material | F29: Description of measurement points used (at calculation point or at the output of sorting operation with subtraction of non-target materials as appropriate, end-of-waste criteria, etc.), including variation at regional and local level
B30: Plastic | F30: output sorting facility with substraction of impurities and humidity (see 3.2.6)
B31: Wood | F31: output sorting facility with substraction of impurities and humidity (see 3.2.6)
B32: Ferrous metals | F32: output sorting facility with substraction of impurities and humidity (see 3.2.6)
B33: Aluminium | F33: output sorting facility with substraction of impurities and humidity (see 3.2.6)
B34: Glass | F34: output sorting facility with substraction of impurities and humidity (see 3.2.6)
B35: Paper and cardboard | F35: output sorting facility with substraction of impurities and humidity (see 3.2.6)
B36: Others
A38: Detailed description of the methodology to calculate the amount of non-target materials removed between the measurement and the calculation points, where applicable
A39: Provide example calculations to indicate how the amounts of non-target materials are deducted from the amounts reported at the measurement points. This is necessary to explain how the correct amounts at the calculation points have been calculated. Refer to the example diagrams reported under the above response, if necessary. A description of how it is ensured that non-target material sent to recycling operations of other material recycling processes is a) not missed out of the reporting, or b) is not double counted, should also be provided.
A40: Measurement are made at the output of the sorting facility and hence non-target material are not missed out or double counted. Contamination (impurities) and humidity rate of waste at the output of the sorting plant is estimated. It is assumed that those impurities, removed at the recycling plant, are not recycled.
A41: This should include a detailed description of how compostable packaging recovered at biowaste treatment plants has been identified and recorded in the data e.g. compostable plastic packaging and/or paper/card.
A42: Compostable packaging treated in biowaste treatment plants have not been considered.
A43: 3.2.4. Description of the methodology to determine per material the amount of recycled materials contained in composite packaging or of packaging composed of multiple materials, and information on any exemptions applied for materials constituting less than 5 % of the total mass of the packaging unit.
A44: Describe how the composition of wastes composed of multiple materials at any calculation point are determined, in order that the amounts are recorded under the respective components of packaging waste, as set out in the Table 1 of Annex I. Where exemptions have been applied for composite materials constituting less than 5% of the total mass of the packaging unit all such exemptions shall be listed here.
A45: It it assumed that for all recycled materials, composed of multiple materials, the proportion of the different material is less than 5%. This applies to cardbard packaging collected, drink bottles, cans and drink cartons. It is important to understand that composite packaging (e.g for food) are not seperately collected in LU.
A46: 3.2.5. Use of Average Loss Rates (ALRs) Description of the sorted packaging waste to which ALRs are applied, types of sorting plants to which different ALRs apply, the methodological approach to calculating ALRs at such point(s), including the statistical accuracy of any surveys used, or the nature of any technical specifications.
A47: Describe the approaches used to calculate ALRs. If necessary, these descriptions could be attached in a separate document if further detail is required for the explanation. These documents should be in English. Where surveys are used, provide details regarding the total population (e.g. total number of sorting plants), the sample size and the confidence interval of the reported data (e.g. 95% +/- 10%). The description of each ALR used for each material and each sorting plant type, should be given in the table. Each ALR should be set out on a separate row in the table.
B49: Sorted waste material and sorting plant type | F49: ALR applied (in %) | G49: Description
G50: ALR are not yet applied
A51: Add rows as appropriate
A52: 3.2.6. Attribution of waste to packaging and non-packaging types and correction for humidity Description, where applicable, of the methodology to exclude non-packaging waste from the reported amount of recycled packaging waste and of the methodology to correct the amount of packaging waste at the measurement point in order to reflect the natural humidity rate of packaging (including by using relevant European standards). Aggregated data across facilities of a similar type is acceptable.
A53: For each waste and facility type, include the estimate share of packaging in the input, and describe the methodologies used. For example, surveying of plant operators or use of actual reported data to an electronic registry. Add rows for all main facility types. Any assumptions made regarding the deduction of moisture to ensure the amount of packaging waste recycled corresponds to the weight of such waste at its natural humidity rate shall be described in detail for each material.
B55: Packaging waste material | D55: Facility type | F55: Share of packaging waste (%) | H55: Description of the methodologies applied to obtain the percentage
B57: plastic | D57: recycling | F57: 0.01 | H57: estimation
B58: plastic | D58: combustion waste | F58: 0.05 | H58: estimation
B59: wood | D59: recycling | F59: 0.051 | H59: estimation
B60: wood | D60: combustion waste | F60: 0.105 | H60: estimation
B61: ferrous material | D61: recycling | F61: 0.03 | H61: estimation
B62: glass | D62: recycling | F62: 0.005 | H62: estimation
B63: paperboard | D63: recycling | F63: 0.015 | H63: estimation
B64: paperboard | D64: combustion waste | F64: 0.06 | H64: estimation
A66: Add rows as appropriate
A67: 3.2.7. Attribution of waste to different Member States Description of the methodology to exclude waste originating from other countries, where applicable. Aggregated data across facilities of a similar type is acceptable.
A68: For each waste and facility type, include the estimated share of waste in the input from the Member State that is reporting only, and describe the methodologies used. For example, surveying of plant operators or use of actual reported data through an electronic registry
B70: Packaging waste material | D70: Facility type | F70: Share of waste from the Member State (%) | H70: Description of the methodologies applied to obtain the percentage
H71: The waste flows are mainly measured at the output of the sorting plants. There is only a very small amount of imported waste imported by waste sorting or treatment plants. Those waste flows are identified in annual waste reported and discarded.
A72: Add rows as appropriate
A73: 3.2.8. Other recovery of waste Description of treatment of waste reported under the category of other recovery and the share of waste (%) subject to such treatment
A74: Describe the wastes and treatment types related to ‘other recovery’.
A75: The category 'other recovery' is not used.
A76: Include the % of Energy Recovery that is from R1 incinerators, out of all Energy Recovery reported (e.g. that may include cement kilns etc).
A77: 0.42
A78: 3.2.9. Information on the relevance of temporary storage of packaging waste to the amounts of treated waste in a given year and any estimates of waste recycled in the current reference year following temporary storage in a previous reference year, and waste going to temporary storage in the current reference year
A79: Describe the quantities of waste by each key component of packaging waste that has been stored in previous years and is going to temporary storage in the current reference year. Provide details of the actual or estimated tonnages, and how this information was obtained from waste management operators e.g. through surveys or through electronic registries. If surveys are used provide further information including their periodicity, sample size, subsamples, and confidence intervals (e.g. 95% +/- 10%).
A80: Temporary storage is not considered
A81: 3.2.10. Verification of data on packaging waste recycling
A82: The columns in the table relate to information on verification procedures used within the national statistical reporting system to validate the accuracy of the data. In all of the following columns, for all materials, include a ‘yes’ or ‘no’ in the table cell to indicate whether they are used or not: Cross-check (yes/no) Time-series check (yes/no) Audit (yes/no) If ‘yes’ is identified for any of these aspects, for any of the materials, in the final column ‘verification process’ please describe the details of the process.
B84: Packaging waste material | D84: Cross-check (yes/no) | F84: Time-series check (yes/no) | H84: Audit (yes/no) | J84: Verification process
B85: Plastic | D85: yes | F85: yes | H85: no | J85: comparison with EPR data
B86: Wood | D86: no | F86: yes | H86: no
B87: Ferrous metals | D87: no | F87: yes | H87: no
B88: Aluminium | D88: no | F88: yes | H88: no
B89: Mixed waste | D89: no | F89: yes | H89: no
B90: Others | D90: na | F90: na | H90: na
A92: 3.2.11. Calculation of recycling of metals from incinerator bottom ash Detailed description of the method to collect data in order to calculate the amount of metals separated from incineration bottom ash in accordance with the Commission Implementing Act adopted in accordance with Article 37(7) of Directive 2008/98/EC
A93: Provide a detailed description of the method undertaken to collect the data that is used to calculate the amount of metals separated from incineration bottom ash. For example, requiring all incinerator operators and IBA processors to report such data in weight to a national electronic registry. This should include a description of the approach taken to measure the total amount of metal concentrate extracted from the incinerator bottom ash. Describe the method used to estimate the average level of metallic content in the total amount of metal concentrate, including the reliability of any surveys undertaken. For example, an annual survey of the metallic content of metal concentrate output from IBA processors. Describe the method to estimate the proportion of municipal waste entering incineration plants, including the reliability of any surveys undertaken. For example, surveying of plant operators or use of actual reported data to an electronic registry.
A95: Data | F95: Description of the measurement method to obtain the data
A96: Total amount of metal concentrate extracted from incinerator bottom ash | F96: It is assumed that all metal packaging (identified via the waste analysis) entering the waste incineration plant is recylced to 100%. LU thrives to improve the calculation of this calculation method. The metal quantity contained within metal waste going into an incineration plant is almost equal to the amount being seperately collected.
A97: waste | F97: NA
A98: Proportion of waste entering incineration plants that is packaging waste, including the reliability of any surveys undertaken | F98: NA

Sheet Data Accuracy
D1: Packaging and Packaging Waste QUALITY REPORT
A4: 3.3. Accuracy of the data for packaging waste generation and treatment
A5: 3.3.1. Description of main issues affecting the accuracy of data on the generation and treatment of packaging waste, including errors related to sampling, coverage, measurement, processing and non-response
A6: Challenges: • analysist of over 800 reports • different EWC codes at input and output of sorting facility • waste streams between waste handlers • wrongly attributed EWC codes and treatment codes • Final treatment often unknown when waste is exported to another waste sorting facility abroad
A7: 3.3.2. Explanation of the scope and validity of surveys to collect data on the generation and treatment of packaging waste
A8: Provide links to documents or other sources where this information would be available, if relevant.
A9: https://data.public.lu/en/datasets/dechets-municipaux/
A10: 3.3.3. Statistical surveys used regarding packaging waste generation and treatment
A11: The information in this section is to provide an overarching understanding of the accuracy of any statistical surveys used relating to packaging waste. Some of the information may be available in previous questions. If the survey(s) relates to individual components of packaging waste separate rows for each component / survey must be included. Where the survey relates to the whole of packaging waste, the component could be categorised as ‘Total’ and only one line filled in the table.
B13: Component of packaging waste | C13: Year | D13: Statistical units | E13: Percentage of population surveyed | F13: Data (tonnes) | G13: Confidence level | H13: Error margin | I13: Details of adjustments from the survey year to the current year | K13: Other details
A15: Add rows for each survey used.
A17: 3.3.4. Differences from previous year's data
A18: If relevant, explain any significant methodological changes in the calculation method for the reported data on waste treatment in the current reference year compared to the previous year of reporting. Please include in particular retrospective revisions, their nature and whether a break-flag is required for a certain year.
A19: A rang of methodological changes were introduced in 2018. Those changes were also applied backwards to the years 2015, 2016 and 2017 and submitted to Eurostat.
A20: 3.3.5. Explanation detailing the causes of the tonnage difference (in relation to which waste streams, sectors or estimates have caused the difference, and what the underlying cause is) for any component of packaging waste generated and recycled which shows greater than a 10 % variation from the data submitted for the previous data year
A21: For each component of packaging waste where the % Variation is greater than 10% then the table must be filled in. One row should be used for each component. The name of the component should be entered into the first column (e.g. metals, glass, plastic, paper and cardboard, etc), with the calculated % Variation in the second column, and a description of the main reason(s) for this variation should be entered in the third column. This may require some in-depth analysis of the data reported from one year to the next in order to provide and response that sufficiently clarifies the reason for the variation.
B23: Material | F23: Variation (%) | G23: Main reason for variation
B24: all | G24: Two main reasons have led to different results between 2017 and 2018: • The results of a new residual waste analysis have been applied in 2018. A general trend in reduction of packaging material has been observed compared to the waste analysis conducted in 2013. This has led to a decrease in most material fractions between 2017 and 2018. • Another decrease in recycled material was observed for metal and plastic packaging as the main sorting plant, for collected household packaging, was upgraded. During the time of the upgrade the sorting process was partly interrupted.
B25: other | G25: see footnotes
A26: Add rows as appropriate

Sheet Reusable & Traceability
D1: Packaging and Packaging Waste QUALITY REPORT
A4: 3.5. Accuracy of the data for reusable packaging
A5: 3.5.1. Description of main issues affecting the accuracy of data on reusable packaging, including errors related to sampling, coverage, measurement, processing and non-response
A6: NA
A7: 3.5.2. Explanation of the scope and validity of surveys to collect data on reusable packaging
A8: Provide links to documents or other sources where this information would be available, if relevant.
A10: 3.5.3. Statistical surveys used regarding reusable packaging
A11: The information in this section is to provide an overarching understanding of the accuracy of any statistical surveys used relating to packaging waste. Some of the information may be available in previous questions. If the survey(s) relates to individual components of packaging waste separate rows for each component / survey must be included. Where the survey relates to the whole of packaging waste, the component could be categorised as ‘Total’ and only one line filled in the table.
B13: Packaging material | C13: Year | D13: Statistical units | E13: Percentage of population surveyed | F13: Data (tonnes) | G13: Confidence level | H13: Error margin | I13: Details of adjustments from the survey year to the current year | K13: Other details
A15: Add rows for each survey used.
A17: 3.5.4. Differences from previous year's data
A18: If relevant, explain any significant methodological changes in the calculation method for the current reference year, if any (please include in particular retrospective revisions, their nature and whether a break-flag is required for a certain year)
A21: 4. Traceability of waste and ensuring its treatment in conditions broadly equivalent to the requirements of EU environmental law
A22: 4.1 1. Detailed description of the system for quality control and traceability for packaging waste pursuant to Article 6a(3) and (8) of Directive 94/62/EC
A23: Traceability is mainly covered by the requirements under the WasteShipmentRegulation.
A24: 4.1.2. Waste treated outside the Member State
A26: Packaging waste material | D26: Subject to final treatment in the Member State (yes/no) | F26: Shipped to another EU Member State (yes/no) | H26: Exported outside the EU (yes/no) | J26: Description of specific measures for quality control and traceability of packaging waste, in particularly as regards monitoring and validation of data
A27: Plastic | D27: no | F27: yes | H27: no | J27: annual reports of waste handlers
A28: Wood | D28: no | F28: yes | H28: no | J28: annual reports of waste handlers
A29: Ferrous metals | D29: yes | F29: yes | H29: no | J29: annual reports of waste handlers
A30: Aluminium | D30: no | F30: yes | H30: no | J30: annual reports of waste handlers
A31: Glass | D31: no | F31: yes | H31: no | J31: annual reports of waste handlers
A32: Paper and cardboard | D32: no | F32: yes | H32: no | J32: annual reports of waste handlers
A33: Others
A35: 4.1.3. Description of measures to ensure that, in accordance with Article 6a(8) of Directive 94/62/EC, the exporter can prove that the shipment of waste complies with the requirements of Regulation (EC) No 1013/2006 of the European Parliament and of the Council ( 1 ) and that the treatment of waste outside the Union took place in conditions that are broadly equivalent to the requirements of the relevant Union environmental law

Sheet Confidentiality & References
D1: Packaging and Packaging Waste QUALITY REPORT
A4: 5. Confidentiality
A5: Justification to withhold the publication of specific parts of this report (please indicate the exact elements not to be published, and why)
A6: If a part of this report cannot be published for confidentiality reasons, please provide your justification for doing so here and specify exactly which part should not be publisihed.
A8: 6. Main national websites, reference documents and publications
A9: Please provide the name and url of the main websites, reference documents and publications related to this data collection
A10: https://data.public.lu/en/datasets/dechets-municipaux/
A12: Add rows as appropriate.

Sheet Any further detailed data...
A2: Any further detailed data may be added in this sheet. For example, if the waste generation figures are available at a higher level of granularity than the main material categories of Table 1.
